Body Name,Body,Creditor Name,Spending Service,Nature of Spend,Ledger Date,Reference Number,Goods Amount (excluding VAT)
Lancaster City Council,30UH, Bookers Cash and Carry,Health & Housing,Materials For Resale,04/04/2016,bpc004002,0.2
Lancaster City Council,30UH,1Env,Health & Housing,Equipment and Tools - General,10/05/2016,spc001602,423
Lancaster City Council,30UH,2LMP LTD,Health & Housing,Office Equipment,03/06/2016,hpc000395,3.21
Lancaster City Council,30UH,A1 supa skips ltd,Health & Housing,Materials (Minor Adaptations),28/06/2016,spc001683,166.77
Lancaster City Council,30UH,AA Key and Safe,Health & Housing,Materials - General,26/05/2016,spc001642,8.32
Lancaster City Council,30UH,AA Key and Safe,Environmental Services,Equipment and Tools - General,24/05/2016,33708,18.75
Lancaster City Council,30UH,AA Key and Safe,Environmental Services,Equipment and Tools - General,01/06/2016,33845,3.75
Lancaster City Council,30UH,Access Point Ltd,Governance,Miscellaneous Advertising,28/06/2016,dpc000416,634.1
Lancaster City Council,30UH,Access Point Ltd,Governance,Miscellaneous Advertising,28/06/2016,dpc000417,634.1
Lancaster City Council,30UH,Access Point Ltd,Governance,Miscellaneous Advertising,28/06/2016,dpc000415,634.1
Lancaster City Council,30UH,Ace Safetywear Ltd,Resources,Other Cleaning,29/04/2016,ppc000481,72.83
Lancaster City Council,30UH,Acute Sales Ltd,Health & Housing,Equipment and Tools - General,19/04/2016,spc001556,110
Lancaster City Council,30UH,Adobe,Health & Housing,Photographic Materials,06/06/2016,bpc004158,5.99
Lancaster City Council,30UH,Adobe,Regeneration and Planning,Services - General,07/04/2016,npc001160,14.29
Lancaster City Council,30UH,Adobe,Regeneration and Planning,Services - General,17/05/2016,npc001214,14.29
Lancaster City Council,30UH,Adobe,Regeneration and Planning,Services - General,07/06/2016,npc001253,14.29
Lancaster City Council,30UH,ADT,Environmental Services,Contract Maintenance,19/05/2016,33652,637.65
Lancaster City Council,30UH,ADT,Environmental Services,Security Services,19/05/2016,33652,194
Lancaster City Council,30UH,AHS Limited,Environmental Services,Grounds Maintenance - Other,22/04/2016,33237,171.76
Lancaster City Council,30UH,Airkix,Health & Housing,Services - General,12/04/2016,bpc004008,191.3
Lancaster City Council,30UH,Airkix,Health & Housing,Services - General,12/04/2016,bpc004009,4.68
Lancaster City Council,30UH,AKW,Health & Housing,Materials (Minor Adaptations),26/05/2016,spc001649,101.56
Lancaster City Council,30UH,AKW,Health & Housing,Materials (Minor Adaptations),26/05/2016,spc001650,101.56
Lancaster City Council,30UH,Alamy,Health & Housing,Photographic Materials,06/06/2016,bpc004156,39.99
Lancaster City Council,30UH,Aldi,Health & Housing,Equipment and Tools - General,20/06/2016,bpc004175,8.61
Lancaster City Council,30UH,Aldi,Environmental Services,Hospitality,08/05/2016,33472,5.27
Lancaster City Council,30UH,Alliance Disposables,Environmental Services,Materials For Resale,25/05/2016,33732,60.06
Lancaster City Council,30UH,Alliance Online,Environmental Services,Equipment and Tools - General,19/05/2016,33646,54.67
Lancaster City Council,30UH,Alliance Online,Environmental Services,Exhibitions & Events,19/05/2016,33647,51.28
Lancaster City Council,30UH,Amazon,Resources,Books & Periodicals,27/04/2016,jpc000731,232.5
Lancaster City Council,30UH,Amazon,Resources,Computer Equipment,16/06/2016,jpc000793,43.89
Lancaster City Council,30UH,Amazon,Resources,Computer Equipment,16/06/2016,jpc000794,46.61
Lancaster City Council,30UH,Amazon,Regeneration and Planning,Computer Equipment,05/04/2016,npc001156,2.03
Lancaster City Council,30UH,Amazon,Health & Housing,Equipment and Tools - General,25/04/2016,bpc004033,21.65
Lancaster City Council,30UH,Amazon,Health & Housing,Equipment and Tools - General,25/04/2016,bpc004038,33.17
Lancaster City Council,30UH,Amazon,Health & Housing,Equipment and Tools - General,25/04/2016,bpc004039,10.61
Lancaster City Council,30UH,Amazon,Health & Housing,Equipment and Tools - General,25/04/2016,bpc004040,10.82
Lancaster City Council,30UH,Amazon,Environmental Services,Equipment and Tools - General,03/05/2016,33409,2.32
Lancaster City Council,30UH,Amazon,Health & Housing,Equipment and Tools - General,01/04/2016,spc001525,23.85
Lancaster City Council,30UH,Amazon,Health & Housing,Equipment and Tools - General,04/04/2016,spc001533,2.75
Lancaster City Council,30UH,Amazon,Health & Housing,Equipment and Tools - General,10/05/2016,spc001595,57.54
Lancaster City Council,30UH,Amazon,Health & Housing,Equipment and Tools - General,23/05/2016,spc001633,11.97
Lancaster City Council,30UH,Amazon,Health & Housing,Equipment and Tools - General,28/06/2016,spc001681,2.96
Lancaster City Council,30UH,Amazon,Resources,Equipment and Tools - General,04/04/2016,jpc000684,213.83
Lancaster City Council,30UH,Amazon,Resources,Equipment and Tools - General,05/04/2016,jpc000699,1035.65
Lancaster City Council,30UH,Amazon,Resources,Equipment and Tools - General,15/04/2016,jpc000709,106.92
Lancaster City Council,30UH,Amazon,Regeneration and Planning,Equipment and Tools - General,20/06/2016,npc001270,5.16
Lancaster City Council,30UH,Amazon,Health & Housing,Equipment Funded by Reserves,05/05/2016,hpc000374,14.83
Lancaster City Council,30UH,Amazon,Health & Housing,Equipment Funded by Reserves,05/05/2016,hpc000381,5.34
Lancaster City Council,30UH,Amazon,Resources,Infrastructure - Update & Maintenance,05/04/2016,jpc000698,319.92
Lancaster City Council,30UH,Amazon,Resources,Infrastructure - Update & Maintenance,08/04/2016,jpc000707,399.99
Lancaster City Council,30UH,Amazon,Resources,Infrastructure - Update & Maintenance,14/04/2016,jpc000708,19.17
Lancaster City Council,30UH,Amazon,Resources,Infrastructure - Update & Maintenance,15/04/2016,jpc000710,182.41
Lancaster City Council,30UH,Amazon,Resources,Infrastructure - Update & Maintenance,27/04/2016,jpc000729,156.57
Lancaster City Council,30UH,Amazon,Resources,Infrastructure - Update & Maintenance,27/05/2016,jpc000767,14.95
Lancaster City Council,30UH,Amazon,Resources,Infrastructure - Update & Maintenance,02/06/2016,jpc000779,106.65
Lancaster City Council,30UH,Amazon,Resources,Infrastructure - Update & Maintenance,16/06/2016,jpc000787,362.5
Lancaster City Council,30UH,Amazon,Resources,Infrastructure - Update & Maintenance,16/06/2016,jpc000788,15.44
Lancaster City Council,30UH,Amazon,Resources,Infrastructure - Update & Maintenance,16/06/2016,jpc000789,74.99
Lancaster City Council,30UH,Amazon,Resources,Infrastructure - Update & Maintenance,16/06/2016,jpc000790,43.12
Lancaster City Council,30UH,Amazon,Resources,Infrastructure - Update & Maintenance,16/06/2016,jpc000791,43.82
Lancaster City Council,30UH,Amazon,Resources,Infrastructure - Update & Maintenance,27/05/2016,jpc000761,14.58
Lancaster City Council,30UH,Amazon,Resources,Infrastructure - Update & Maintenance,27/05/2016,jpc000766,266.5
Lancaster City Council,30UH,Amazon,Resources,Infrastructure - Update & Maintenance,27/05/2016,jpc000769,9.16
Lancaster City Council,30UH,Amazon,Resources,Infrastructure - Update & Maintenance,27/05/2016,jpc000772,18.29
Lancaster City Council,30UH,Amazon,Health & Housing,IT Consumables,24/06/2016,spc001677,6.58
Lancaster City Council,30UH,Amazon,Resources,IT Consumables,27/04/2016,jpc000727,87.46
Lancaster City Council,30UH,Amazon,Resources,IT Consumables,27/04/2016,jpc000728,34.95
Lancaster City Council,30UH,Amazon,Health & Housing,Materials - General,25/04/2016,bpc004032,9.92
Lancaster City Council,30UH,Amazon,Health & Housing,Materials - General,25/04/2016,bpc004034,15.37
Lancaster City Council,30UH,Amazon,Health & Housing,Materials - General,25/04/2016,bpc004035,1.37
Lancaster City Council,30UH,Amazon,Health & Housing,Materials - General,25/04/2016,bpc004043,8.29
Lancaster City Council,30UH,Amazon,Health & Housing,Materials - General,25/04/2016,bpc004044,5.42
Lancaster City Council,30UH,Amazon,Health & Housing,Materials - General,29/04/2016,bpc004065,7.88
Lancaster City Council,30UH,Amazon,Health & Housing,Materials - General,29/04/2016,bpc004066,31.04
Lancaster City Council,30UH,Amazon,Health & Housing,Materials - General,01/06/2016,bpc004148,13.32
Lancaster City Council,30UH,Amazon,Health & Housing,Materials - General,01/06/2016,bpc004150,22.89
Lancaster City Council,30UH,Amazon,Health & Housing,Materials - General,01/06/2016,bpc004151,21.69
Lancaster City Council,30UH,Amazon,Health & Housing,Materials - General,22/06/2016,bpc004195,61.84
Lancaster City Council,30UH,Amazon,Health & Housing,Materials - General,23/06/2016,bpc004203,24.43
Lancaster City Council,30UH,Amazon,Environmental Services,Materials - General,27/04/2016,33316,11.49
Lancaster City Council,30UH,Amazon,Environmental Services,Materials - General,03/05/2016,33395,7.98
Lancaster City Council,30UH,Amazon,Environmental Services,Materials - General,01/06/2016,33808,11.27
Lancaster City Council,30UH,Amazon,Health & Housing,Materials - General,26/05/2016,spc001645,8.32
Lancaster City Council,30UH,Amazon,Health & Housing,Materials (Minor Adaptations),03/05/2016,spc001587,63.19
Lancaster City Council,30UH,Amazon,Health & Housing,Miscellaneous Expenditure,05/05/2016,hpc000376,30.26
Lancaster City Council,30UH,Amazon,Health & Housing,Miscellaneous Expenditure,05/05/2016,hpc000377,30.27
Lancaster City Council,30UH,Amazon,Health & Housing,Miscellaneous Expenditure,05/05/2016,hpc000380,415.6
Lancaster City Council,30UH,Amazon,Resources,Miscellaneous Expenditure,27/05/2016,jpc000765,11.66
Lancaster City Council,30UH,Amazon,Health & Housing,Mobile Telephones,10/05/2016,spc001596,10.98
Lancaster City Council,30UH,Amazon,Resources,Mobile Telephones,27/04/2016,jpc000725,169.35
Lancaster City Council,30UH,Amazon,Resources,Mobile Telephones,27/04/2016,jpc000730,15.82
Lancaster City Council,30UH,Amazon,Resources,Mobile Telephones,27/05/2016,jpc000762,92.86
Lancaster City Council,30UH,Amazon,Resources,Mobile Telephones,27/05/2016,jpc000763,344.03
Lancaster City Council,30UH,Amazon,Resources,Mobile Telephones,27/05/2016,jpc000764,47.16
Lancaster City Council,30UH,Amazon,Resources,Office Equipment,04/04/2016,fpc000168,42.66
Lancaster City Council,30UH,Amazon,Regeneration and Planning,Office Equipment,07/06/2016,npc001254,21.66
Lancaster City Council,30UH,Amazon,Regeneration and Planning,Office Equipment,08/06/2016,npc001259,21.66
Lancaster City Council,30UH,Amazon,Health & Housing,Office Equipment,05/04/2016,hpc000367,22.22
Lancaster City Council,30UH,Amazon,Health & Housing,Office Equipment,05/05/2016,hpc000383,62.44
Lancaster City Council,30UH,Amazon,Health & Housing,Office Equipment,05/05/2016,hpc000384,59.95
Lancaster City Council,30UH,Amazon,Health & Housing,Office Equipment,05/05/2016,hpc000385,5.96
Lancaster City Council,30UH,Amazon,Health & Housing,Office Equipment,03/06/2016,hpc000396,16.42
Lancaster City Council,30UH,Amazon,Health & Housing,Other Cleaning,05/05/2016,hpc000379,13.92
Lancaster City Council,30UH,Amazon,Health & Housing,Printing & Stationery,26/04/2016,bpc004050,15.52
Lancaster City Council,30UH,Amazon,Health & Housing,Printing & Stationery,29/04/2016,bpc004067,3.38
Lancaster City Council,30UH,Amazon,Health & Housing,Printing & Stationery,01/06/2016,bpc004149,3.22
Lancaster City Council,30UH,Amazon,Health & Housing,Printing & Stationery,22/06/2016,bpc004193,3.22
Lancaster City Council,30UH,Amazon,Health & Housing,Printing & Stationery,22/06/2016,bpc004194,1.7
Lancaster City Council,30UH,Amazon,Health & Housing,Printing & Stationery,22/06/2016,bpc004196,9.61
Lancaster City Council,30UH,Amazon,Health & Housing,Printing & Stationery,23/06/2016,bpc004202,7.7
Lancaster City Council,30UH,Amazon,Health & Housing,Printing & Stationery,30/06/2016,bpc004241,2.82
Lancaster City Council,30UH,Amazon,Resources,Printing & Stationery,11/05/2016,fpc000171,18.34
Lancaster City Council,30UH,Amazon,Environmental Services,Printing & Stationery,27/04/2016,33316,9.99
Lancaster City Council,30UH,Amazon,Environmental Services,Printing & Stationery,25/05/2016,33726,36.57
Lancaster City Council,30UH,Amazon,Resources,Printing & Stationery,02/06/2016,jpc000778,13.45
Lancaster City Council,30UH,Amazon,Health & Housing,Printing & Stationery,05/05/2016,hpc000382,45.28
Lancaster City Council,30UH,Amazon,Health & Housing,Printing & Stationery,06/05/2016,hpc000386,-38.08
Lancaster City Council,30UH,Amazon,Health & Housing,Printing & Stationery,03/06/2016,hpc000398,27.67
Lancaster City Council,30UH,Amazon,Environmental Services,Promenade Passes,07/04/2016,33113,18.44
Lancaster City Council,30UH,Amazon,Resources,Purchase Of Equipment,05/04/2016,jpc000697,50.41
Lancaster City Council,30UH,Amazon,Resources,Purchase Of Equipment,27/04/2016,jpc000723,251.52
Lancaster City Council,30UH,Amazon,Resources,Purchase Of Equipment,27/04/2016,jpc000726,368.32
Lancaster City Council,30UH,Amazon,Resources,Purchase Of Equipment,16/05/2016,jpc000735,88.55
Lancaster City Council,30UH,Amazon,Resources,Purchase Of Equipment,02/06/2016,jpc000780,90.7
Lancaster City Council,30UH,Amazon,Resources,Purchase Of Equipment,03/06/2016,jpc000781,107.43
Lancaster City Council,30UH,Amazon,Regeneration and Planning,Purchase Of Equipment,27/04/2016,npc001185,30.61
Lancaster City Council,30UH,Amazon,Resources,Purchase Of Equipment,27/05/2016,jpc000770,10.38
Lancaster City Council,30UH,Amazon,Resources,Purchase Of Equipment,27/05/2016,jpc000773,403.88
Lancaster City Council,30UH,Amazon,Resources,Purchase Of Equipment,27/05/2016,jpc000774,59.75
Lancaster City Council,30UH,Amazon,Regeneration and Planning,Services - General,01/04/2016,npc001136,102.77
Lancaster City Council,30UH,Amazon,Environmental Services,Services - Waste Disposal,11/05/2016,33534,349.17
Lancaster City Council,30UH,Amazon,Resources,Telephones,27/04/2016,jpc000724,83.84
Lancaster City Council,30UH,Amazon,Governance,IT Consumables,25/05/2016,dpc000401,27.08
Lancaster City Council,30UH,Amazon,Environmental Services,Capital Payments To Contractors,28/04/2016,33353,73.17
Lancaster City Council,30UH,Amazon,Environmental Services,Equipment and Tools - General,11/05/2016,33535,120
Lancaster City Council,30UH,Amazon,Environmental Services,Materials - General,19/05/2016,33679,18.37
Lancaster City Council,30UH,Amazon,Environmental Services,Equipment and Tools - General,28/04/2016,33354,43.89
Lancaster City Council,30UH,Amazon,Environmental Services,Materials - General,19/05/2016,33681,16.68
Lancaster City Council,30UH,Amazon,Environmental Services,Equipment and Tools - General,09/06/2016,33938,14.99
Lancaster City Council,30UH,Amazon,Health & Housing,Materials - General,03/05/2016,spc001581,12
Lancaster City Council,30UH,Amazon,Health & Housing,Materials - General,03/05/2016,spc001582,5.42
Lancaster City Council,30UH,Amazon,Health & Housing,Materials - General,17/05/2016,spc001619,3.95
Lancaster City Council,30UH,Amazon,Health & Housing,Equipment and Tools - General,18/05/2016,spc001624,31.28
Lancaster City Council,30UH,Amazon,Health & Housing,Equipment and Tools - General,18/05/2016,spc001625,24.99
Lancaster City Council,30UH,Amazon,Health & Housing,Equipment and Tools - General,18/05/2016,spc001626,-31.28
Lancaster City Council,30UH,Amazon,Environmental Services,P Card Dispute Code,11/05/2016,40864,419
Lancaster City Council,30UH,Amazon,Health & Housing,Equipment and Tools - General,04/04/2016,bpc003996,23.9
Lancaster City Council,30UH,Amazon,Health & Housing,Equipment and Tools - General,04/04/2016,bpc003997,13.58
Lancaster City Council,30UH,Amazon,Health & Housing,Printing & Stationery,27/06/2016,bpc004222,7.8
Lancaster City Council,30UH,Amazon,Regeneration and Planning,Computer Equipment,29/06/2016,npc001282,9.12
Lancaster City Council,30UH,Amoma.com,Resources,Use Of Public Tpt - Officers,30/06/2016,jpc000809,110.72
Lancaster City Council,30UH,ANIMAL PLANET,Environmental Services,Materials - General,06/04/2016,33092,21.59
Lancaster City Council,30UH,Anweb,Regeneration and Planning,Marketing,30/06/2016,34141,30
Lancaster City Council,30UH,APPLIANCE DIRECT,Health & Housing,Equipment Funded by Reserves,05/05/2016,hpc000372,145.82
Lancaster City Council,30UH,APPLIANCE DIRECT,Health & Housing,Equipment Funded by Reserves,05/05/2016,hpc000373,162.49
Lancaster City Council,30UH,APPLIANCE DIRECT,Health & Housing,Equipment Funded by Reserves,05/05/2016,hpc000378,162.49
Lancaster City Council,30UH,APPLIANCE DIRECT,Health & Housing,Equipment Funded by Reserves,03/06/2016,hpc000397,162.49
Lancaster City Council,30UH,APPLIANCE DIRECT,Health & Housing,Equipment Funded by Reserves,03/06/2016,hpc000400,162.49
Lancaster City Council,30UH,APPLIANCE DIRECT,Health & Housing,Miscellaneous Expenditure,05/05/2016,hpc000375,170.82
Lancaster City Council,30UH,APPLIANCE DRIECT,Health & Housing,Equipment Funded by Reserves,05/04/2016,hpc000366,145.82
Lancaster City Council,30UH,APPLIANCE DRIECT,Resources,R & M - Buildings,23/06/2016,ppc000523,438.26
Lancaster City Council,30UH,APPS,Health & Housing,Equipment and Tools - General,06/06/2016,spc001663,315
Lancaster City Council,30UH,Argos,Resources,Computer Equipment,05/04/2016,jpc000686,266.58
Lancaster City Council,30UH,Argos,Resources,Equipment and Tools - General,13/05/2016,ppc000495,14.79
Lancaster City Council,30UH,Argos,Regeneration and Planning,Equipment and Tools - General,27/05/2016,npc001236,16.66
Lancaster City Council,30UH,Argos,Health & Housing,Homelessness Priority Need Order,16/06/2016,spc001671,247.74
Lancaster City Council,30UH,Argos,Governance,Office Equipment,05/05/2016,dpc000391,19.16
Lancaster City Council,30UH,Argos,Regeneration and Planning,Office Equipment,03/05/2016,33394,17.99
Lancaster City Council,30UH,Argos,Regeneration and Planning,Office Equipment,18/05/2016,npc001217,3.99
Lancaster City Council,30UH,Argos,Regeneration and Planning,Office Equipment,27/06/2016,npc001276,99.99
Lancaster City Council,30UH,Argos,Resources,Purchase Of Equipment,05/04/2016,jpc000687,133.29
Lancaster City Council,30UH,Argos,Resources,Office Equipment,04/05/2016,fpc000170,41.66
Lancaster City Council,30UH,Arnside Independent Hostel,Regeneration and Planning,Management Plan Projects,11/05/2016,npc001208,65
Lancaster City Council,30UH,ASA,Health & Housing,Materials For Resale,26/04/2016,bpc004046,45.6
Lancaster City Council,30UH,ASA,Health & Housing,Materials For Resale,22/06/2016,bpc004190,327.66
Lancaster City Council,30UH,ASA,Health & Housing,Materials For Resale,22/06/2016,bpc004191,31.78
Lancaster City Council,30UH,ASA ,Health & Housing,Materials For Resale,24/06/2016,bpc004211,207.6
Lancaster City Council,30UH,ASA ,Health & Housing,Materials For Resale,30/06/2016,bpc004239,158.06
Lancaster City Council,30UH,ASDA,Health & Housing,Cleaning Materials,30/06/2016,bpc004234,6.38
Lancaster City Council,30UH,ASDA,Health & Housing,Equipment and Tools - General,09/05/2016,bpc004085,6
Lancaster City Council,30UH,ASDA,Health & Housing,Equipment and Tools - General,16/05/2016,bpc004106,29.01
Lancaster City Council,30UH,ASDA,Health & Housing,Equipment and Tools - General,26/04/2016,bpc004047,4.92
Lancaster City Council,30UH,ASDA,Health & Housing,Equipment and Tools - General,23/06/2016,bpc004200,16.67
Lancaster City Council,30UH,ASDA,Health & Housing,Materials - General,16/05/2016,bpc004111,4.17
Lancaster City Council,30UH,ASDA,Environmental Services,Materials - General,27/04/2016,33321,4.5
Lancaster City Council,30UH,ASDA,Environmental Services,Materials - General,27/04/2016,33322,7
Lancaster City Council,30UH,ASDA,Health & Housing,Materials For Resale,06/06/2016,bpc004163,6.85
Lancaster City Council,30UH,ASDA,Health & Housing,Materials For Resale,07/06/2016,bpc004164,18.22
Lancaster City Council,30UH,ASDA,Health & Housing,Materials For Resale,24/06/2016,bpc004209,4.87
Lancaster City Council,30UH,ASDA,Health & Housing,Materials For Resale,01/04/2016,bpc003990,6.15
Lancaster City Council,30UH,ASDA,Health & Housing,Materials For Resale,20/04/2016,bpc004022,6.96
Lancaster City Council,30UH,ASDA,Health & Housing,Materials For Resale,14/05/2016,bpc004096,6.96
Lancaster City Council,30UH,ASDA,Health & Housing,Materials For Resale,16/05/2016,bpc004111,24.7
Lancaster City Council,30UH,ASDA,Health & Housing,Materials For Resale,30/06/2016,bpc004234,8
Lancaster City Council,30UH,ASDA,Health & Housing,Petrol & Derv,30/06/2016,bpc004235,22.69
Lancaster City Council,30UH,ASDA,Health & Housing,Services - General,21/04/2016,bpc004024,21.39
Lancaster City Council,30UH,ASDA,Health & Housing,Petrol & Derv,24/06/2016,bpc004208,18.22
Lancaster City Council,30UH,ASDA,Health & Housing,Petrol & Derv,24/06/2016,bpc004207,64.33
Lancaster City Council,30UH,Ashton Hall Garden Centre,Environmental Services,Materials - General,03/05/2016,33407,16.97
Lancaster City Council,30UH,Atkinsons,Regeneration and Planning,Bar Supplies,28/06/2016,npc001279,56
Lancaster City Council,30UH,Atkinsons,Environmental Services,Contract Maintenance,07/04/2016,33116,310.49
Lancaster City Council,30UH,Atkinsons,Environmental Services,Materials For Resale,07/04/2016,33116,1139.29
Lancaster City Council,30UH,Atkinsons,Environmental Services,Materials For Resale,27/04/2016,33303,244.68
Lancaster City Council,30UH,aura online ltd,Health & Housing,Equipment and Tools - General,19/04/2016,bpc004015,365.95
Lancaster City Council,30UH,Axminster Tools,Environmental Services,Equipment and Tools - General,10/05/2016,33509,66.93
Lancaster City Council,30UH,B & Q,Health & Housing,R & M - Environmental Works,15/06/2016,hpc000404,9.89
Lancaster City Council,30UH,B & Q,Resources,Equipment and Tools - General,03/05/2016,ppc000486,75
Lancaster City Council,30UH,Baker Ross,Environmental Services,Materials - General,27/04/2016,33299,25.11
Lancaster City Council,30UH,BALL COLEGRAVE,Environmental Services,Materials - General,06/04/2016,33093,35.23
Lancaster City Council,30UH,BALL COLEGRAVE,Environmental Services,Materials - General,30/06/2016,34136,6.6
Lancaster City Council,30UH,Ballicom,Resources,Equipment and Tools - General,04/04/2016,jpc000685,208.93
Lancaster City Council,30UH,Ballicom,Resources,Purchase Of Equipment,27/04/2016,jpc000722,294.48
Lancaster City Council,30UH,Bays Bikes,Health & Housing,Equipment and Tools - General,28/04/2016,spc001578,15
Lancaster City Council,30UH,Bays Bikes,Regeneration and Planning,R & M - General,05/04/2016,npc001157,21.25
Lancaster City Council,30UH,Best4Systems,Resources,Office Equipment,03/05/2016,rpc000087,95
Lancaster City Council,30UH,Best4Systems,Health & Housing,IT Consumables,28/06/2016,spc001679,42
Lancaster City Council,30UH,Best4Headsets,Resources,Infrastructure - Update & Maintenance,27/05/2016,jpc000744,102
Lancaster City Council,30UH,Best4Systems,Resources,Infrastructure - Update & Maintenance,27/05/2016,jpc000745,42
Lancaster City Council,30UH,Best4Systems,Resources,Office Equipment,08/04/2016,rpc000084,22
Lancaster City Council,30UH,Big Brown Carrier Bag Supplier,Regeneration and Planning,Printing & Stationery,12/05/2016,33560,29.95
Lancaster City Council,30UH,BLT Direct Ltd,Resources,R & M - Buildings,01/04/2016,ppc000452,37.8
Lancaster City Council,30UH,BLT Direct Ltd,Resources,R & M - Buildings,14/04/2016,ppc000473,354.1
Lancaster City Council,30UH,BLT Direct Ltd,Resources,R & M - Buildings,04/04/2016,ppc000468,70.54
Lancaster City Council,30UH,BLT Direct Ltd,Resources,R & M - Buildings,04/04/2016,ppc000469,37.8
Lancaster City Council,30UH,BLT Direct Ltd,Resources,R & M - Buildings,15/04/2016,ppc000475,37.8
Lancaster City Council,30UH,Boards direcdt,Health & Housing,Tenants Participation,20/04/2016,hpc000371,499.22
Lancaster City Council,30UH,Booker Limited,Environmental Services,Equipment and Tools - General,29/04/2016,33361,49.94
Lancaster City Council,30UH,Booker Limited,Health & Housing,Materials - General,30/06/2016,bpc004230,67.98
Lancaster City Council,30UH,Booker Limited,Health & Housing,Materials For Resale,20/06/2016,bpc004176,141.62
Lancaster City Council,30UH,Booker Limited,Environmental Services,Materials For Resale,27/04/2016,33307,322.16
Lancaster City Council,30UH,Booker Limited,Environmental Services,Materials For Resale,27/04/2016,33313,219.2
Lancaster City Council,30UH,Booker Limited,Environmental Services,Materials For Resale,29/04/2016,33361,759.34
Lancaster City Council,30UH,Booker Limited,Environmental Services,Materials For Resale,01/06/2016,33818,857.37
Lancaster City Council,30UH,Booker Limited,Environmental Services,Materials For Resale,01/06/2016,33825,452.05
Lancaster City Council,30UH,Booker Limited,Environmental Services,Materials For Resale,07/06/2016,33913,45.81
Lancaster City Council,30UH,Booker Limited,Environmental Services,Materials For Resale,15/06/2016,33974,191.56
Lancaster City Council,30UH,Booker Limited,Environmental Services,Materials For Resale,15/06/2016,33978,473.02
Lancaster City Council,30UH,Booker Limited,Health & Housing,Services - General,19/04/2016,bpc004017,28.22
Lancaster City Council,30UH,Booker Limited,Regeneration and Planning,Bar Supplies,02/06/2016,npc001250,193.84
Lancaster City Council,30UH,Booker Limited,Regeneration and Planning,Bar Supplies,12/04/2016,npc001172,134.81
Lancaster City Council,30UH,Booker Limited,Regeneration and Planning,Bar Supplies,19/05/2016,npc001227,83.39
Lancaster City Council,30UH,Booker Limited,Regeneration and Planning,Bar Supplies,27/05/2016,npc001237,421.7
Lancaster City Council,30UH,Booker Limited,Regeneration and Planning,Bar Supplies,02/06/2016,npc001244,138.48
Lancaster City Council,30UH,Booker Limited,Regeneration and Planning,Bar Supplies,28/06/2016,npc001278,74.57
Lancaster City Council,30UH,Booker Limited,Health & Housing,Materials - General,13/05/2016,bpc004095,127.3
Lancaster City Council,30UH,Booker Limited,Health & Housing,Materials - General,06/06/2016,bpc004154,14.99
Lancaster City Council,30UH,Booker Limited,Health & Housing,Materials - General,20/06/2016,bpc004181,56.98
Lancaster City Council,30UH,Booker Limited,Health & Housing,Materials For Resale,04/04/2016,bpc004001,104.69
Lancaster City Council,30UH,Booker Limited,Health & Housing,Materials For Resale,18/04/2016,bpc004014,100.77
Lancaster City Council,30UH,Booker Limited,Health & Housing,Materials For Resale,16/05/2016,bpc004100,270.71
Lancaster City Council,30UH,Booker Limited,Health & Housing,Materials For Resale,14/04/2016,bpc004013,8.9
Lancaster City Council,30UH,Booker Limited,Health & Housing,Materials For Resale,20/04/2016,bpc004018,115.12
Lancaster City Council,30UH,Booker Limited,Health & Housing,Materials For Resale,20/04/2016,bpc004019,573.62
Lancaster City Council,30UH,Booker Limited,Health & Housing,Materials For Resale,25/04/2016,bpc004028,14.29
Lancaster City Council,30UH,Booker Limited,Health & Housing,Materials For Resale,25/04/2016,bpc004029,377.38
Lancaster City Council,30UH,Booker Limited,Health & Housing,Materials For Resale,30/04/2016,bpc004068,11.87
Lancaster City Council,30UH,Booker Limited,Health & Housing,Materials For Resale,30/04/2016,bpc004075,56.98
Lancaster City Council,30UH,Booker Limited,Health & Housing,Materials For Resale,30/04/2016,bpc004076,84.12
Lancaster City Council,30UH,Booker Limited,Health & Housing,Materials For Resale,30/04/2016,bpc004077,-20.17
Lancaster City Council,30UH,Booker Limited,Health & Housing,Materials For Resale,30/04/2016,bpc004078,37.95
Lancaster City Council,30UH,Booker Limited,Health & Housing,Materials For Resale,30/04/2016,bpc004079,52.43
Lancaster City Council,30UH,Booker Limited,Health & Housing,Materials For Resale,05/05/2016,bpc004084,141.27
Lancaster City Council,30UH,Booker Limited,Health & Housing,Materials For Resale,10/05/2016,bpc004090,97.03
Lancaster City Council,30UH,Booker Limited,Health & Housing,Materials For Resale,10/05/2016,bpc004092,-3.81
Lancaster City Council,30UH,Booker Limited,Health & Housing,Materials For Resale,14/05/2016,bpc004097,47.43
Lancaster City Council,30UH,Booker Limited,Health & Housing,Materials For Resale,14/05/2016,bpc004098,16.32
Lancaster City Council,30UH,Booker Limited,Health & Housing,Materials For Resale,14/05/2016,bpc004099,275.88
Lancaster City Council,30UH,Booker Limited,Health & Housing,Materials For Resale,18/05/2016,bpc004119,118.86
Lancaster City Council,30UH,Booker Limited,Health & Housing,Materials For Resale,18/05/2016,bpc004120,17.98
Lancaster City Council,30UH,Booker Limited,Health & Housing,Materials For Resale,18/05/2016,bpc004121,25.38
Lancaster City Council,30UH,Booker Limited,Health & Housing,Materials For Resale,26/05/2016,bpc004132,37.94
Lancaster City Council,30UH,Booker Limited,Health & Housing,Materials For Resale,26/05/2016,bpc004133,448.05
Lancaster City Council,30UH,Booker Limited,Health & Housing,Materials For Resale,01/06/2016,bpc004144,233.31
Lancaster City Council,30UH,Booker Limited,Health & Housing,Materials For Resale,06/06/2016,bpc004154,64.38
Lancaster City Council,30UH,Booker Limited,Health & Housing,Materials For Resale,07/06/2016,bpc004165,-14.67
Lancaster City Council,30UH,Booker Limited,Health & Housing,Materials For Resale,07/06/2016,bpc004166,28.28
Lancaster City Council,30UH,Booker Limited,Health & Housing,Materials For Resale,09/06/2016,bpc004167,311.21
Lancaster City Council,30UH,Booker Limited,Health & Housing,Materials For Resale,09/06/2016,bpc004168,25.38
Lancaster City Council,30UH,Booker Limited,Health & Housing,Materials For Resale,09/06/2016,bpc004169,28.37
Lancaster City Council,30UH,Booker Limited,Health & Housing,Materials For Resale,20/06/2016,bpc004181,54.44
Lancaster City Council,30UH,Booker Limited,Health & Housing,Materials For Resale,21/06/2016,bpc004183,23.97
Lancaster City Council,30UH,Booker Limited,Health & Housing,Materials For Resale,21/06/2016,bpc004184,27.91
Lancaster City Council,30UH,Booker Limited,Health & Housing,Materials For Resale,22/06/2016,bpc004188,282.61
Lancaster City Council,30UH,Booker Limited,Health & Housing,Materials For Resale,30/06/2016,bpc004236,14.29
Lancaster City Council,30UH,Booker Limited,Health & Housing,Materials For Resale,30/06/2016,bpc004238,28.58
Lancaster City Council,30UH,Booker Limited,Health & Housing,Materials For Resale,24/06/2016,bpc004210,126.36
Lancaster City Council,30UH,Booker Limited,Health & Housing,System Suspense Account    018,09/05/2016,bpc004086,258.87
Lancaster City Council,30UH,Booker Limited,Health & Housing,Materials For Resale,30/06/2016,bpc004233,-8.18
Lancaster City Council,30UH,Booker Limited,Health & Housing,Materials For Resale,01/04/2016,bpc003979,99.38
Lancaster City Council,30UH,Booking.com,Resources,Use Of Public Tpt - Officers,27/04/2016,jpc000721,45
Lancaster City Council,30UH,Booths,Regeneration and Planning,AONB Executive Support,27/04/2016,npc001188,0.49
Lancaster City Council,30UH,Booths,Health & Housing,Equipment and Tools - General,31/05/2016,bpc004140,4.1
Lancaster City Council,30UH,Booths,Health & Housing,Equipment and Tools - General,16/05/2016,spc001616,8.33
Lancaster City Council,30UH,Booths,Regeneration and Planning,Other Cleaning,27/04/2016,npc001187,6.66
Lancaster City Council,30UH,Booths,Regeneration and Planning,Printing & Stationery,27/04/2016,npc001186,5.63
Lancaster City Council,30UH,Boots,Governance,Civic Receptions & Mayoral Functions,17/05/2016,dpc000398,2.38
Lancaster City Council,30UH,Boston Seeds,Environmental Services,Grounds Maintenance - Other,07/06/2016,33912,86.67
Lancaster City Council,30UH,Boundtree,Health & Housing,Materials - General,22/06/2016,bpc004192,39
Lancaster City Council,30UH,Bowling Green Scotforth Road,Environmental Services,Fuel Oil,03/05/2016,33406,51.39
Lancaster City Council,30UH,British Telecommunications plc,Health & Housing,Telephones,28/04/2016,bpc004062,82.36
Lancaster City Council,30UH,British Telecommunications plc,Health & Housing,Telephones,25/05/2016,bpc004129,91.68
Lancaster City Council,30UH,Broadoak,Health & Housing,Equipment and Tools - General,14/06/2016,bpc004173,166.25
Lancaster City Council,30UH,Broadoak,Environmental Services,Grounds Maintenance - Other,01/06/2016,33811,206.95
Lancaster City Council,30UH,BT,Regeneration and Planning,Telephones,12/04/2016,npc001168,92.5
Lancaster City Council,30UH,BT,Regeneration and Planning,Telephones,25/05/2016,npc001234,298.21
Lancaster City Council,30UH,BT Business,Health & Housing,Computer Equipment,06/06/2016,bpc004153,19.41
Lancaster City Council,30UH,Burnley Council,Health & Housing,Printing & Stationery,27/06/2016,bpc004218,127.4
Lancaster City Council,30UH,Burnley Council,Regeneration and Planning,Internet Provision,06/04/2016,npc001153,312.5
Lancaster City Council,30UH,Burnley Council,Health & Housing,Marketing,25/05/2016,bpc004128,1500
Lancaster City Council,30UH,Burnley Council,Regeneration and Planning,Marketing,11/05/2016,npc001207,80
Lancaster City Council,30UH,Burnley Council,Environmental Services,Printing & Stationery,27/04/2016,33310,80
Lancaster City Council,30UH,Burnley Council,Regeneration and Planning,Marketing,15/06/2016,npc001267,40
Lancaster City Council,30UH,Burnley Council,Regeneration and Planning,Marketing,10/06/2016,npc001264,80
Lancaster City Council,30UH,Cableties-online,Environmental Services,R & M Sites & Signs,09/06/2016,33941,80.6
Lancaster City Council,30UH,Cannon,Health & Housing,Cleansing Equipment,26/04/2016,bpc004048,25.33
Lancaster City Council,30UH,Capita Gas Registration,Environmental Services,Subscriptions,10/05/2016,33517,311
Lancaster City Council,30UH,capt shop,Health & Housing,Children & Young People,05/04/2016,hpc000369,19.95
Lancaster City Council,30UH,Catering Base,Health & Housing,Equipment and Tools - General,19/04/2016,spc001558,8.38
Lancaster City Council,30UH,CDW,Resources,Purchase Of Equipment,29/06/2016,jpc000807,3753.75
Lancaster City Council,30UH,CEF,Regeneration and Planning,Equipment and Tools - General,19/05/2016,npc001226,43.12
Lancaster City Council,30UH,Chubb,Environmental Services,Contract Maintenance,19/05/2016,33651,658.69
Lancaster City Council,30UH,Chubb,Regeneration and Planning,R & M - Buildings,12/04/2016,npc001165,158.98
Lancaster City Council,30UH,Cipfa,Resources,Conferences & Seminars,12/05/2016,fpc000179,36
Lancaster City Council,30UH,CJ Papers,Regeneration and Planning,Printing & Stationery,12/04/2016,33201,16
Lancaster City Council,30UH,CJ Papers,Regeneration and Planning,Printing & Stationery,06/06/2016,34019,10.8
Lancaster City Council,30UH,Classic Engraving,Regeneration and Planning,R & M - General,05/04/2016,npc001155,37.5
Lancaster City Council,30UH,Classic Engraving,Regeneration and Planning,R & M - General,05/04/2016,npc001184,41.67
Lancaster City Council,30UH,Classic Engraving,Regeneration and Planning,R & M - General,09/06/2016,npc001261,41.67
Lancaster City Council,30UH,Classic Engraving,Regeneration and Planning,R & M - Sea & River / Promenade,09/05/2016,npc001216,41.67
Lancaster City Council,30UH,CLB Retail Ltd,Health & Housing,Equipment and Tools - General,05/04/2016,spc001538,20.79
Lancaster City Council,30UH,Clubbercise,Health & Housing,Materials For Resale,17/05/2016,bpc004115,178.32
Lancaster City Council,30UH,Coastline Travel,Health & Housing,Equipment and Tools - General,23/05/2016,spc001636,27
Lancaster City Council,30UH,Coles Hardware,Health & Housing,Materials - General,03/05/2016,spc001583,45.83
Lancaster City Council,30UH,Coles Hardware,Health & Housing,Materials (Minor Adaptations),03/05/2016,spc001584,4.17
Lancaster City Council,30UH,Coles Hardware,Health & Housing,Materials (Minor Adaptations),17/05/2016,spc001618,4.17
Lancaster City Council,30UH,Comms-Express,Resources,Infrastructure - Update & Maintenance,16/06/2016,jpc000785,100
Lancaster City Council,30UH,Comms-Express,Resources,Infrastructure - Update & Maintenance,16/06/2016,jpc000786,173.75
Lancaster City Council,30UH,Comms-Express,Resources,Infrastructure - Update & Maintenance,15/04/2016,jpc000711,112.6
Lancaster City Council,30UH,Comms-Express,Resources,Infrastructure - Update & Maintenance,15/04/2016,jpc000713,92
Lancaster City Council,30UH,Comms-Express,Resources,Infrastructure - Update & Maintenance,16/05/2016,jpc000733,43.05
Lancaster City Council,30UH,Considerate Constructors,Environmental Services,Other Construction Costs,10/05/2016,33523,445
Lancaster City Council,30UH,Considerate Constructors,Environmental Services,Other Construction Costs,10/05/2016,33522,225
Lancaster City Council,30UH,Contractor Bradford IN,Health & Housing,Use Of Public Tpt - Officers,30/06/2016,bpc004231,10.6
Lancaster City Council,30UH,Contractor Leeds RP,Health & Housing,Use Of Public Tpt - Officers,04/04/2016,bpc003999,7.1
Lancaster City Council,30UH,Contractor Leeds RP,Health & Housing,Use Of Public Tpt - Officers,04/04/2016,bpc004000,17
Lancaster City Council,30UH,Convetape,Health & Housing,Equipment and Tools - General,03/05/2016,spc001586,52.9
Lancaster City Council,30UH,Cordee,Regeneration and Planning,Materials For Resale,12/04/2016,33136,128.5
Lancaster City Council,30UH,Cordee,Regeneration and Planning,Materials For Resale,28/04/2016,33350,129.84
Lancaster City Council,30UH,Correct Flow,Health & Housing,Chemicals,01/04/2016,bpc003995,169.47
Lancaster City Council,30UH,Correct Flow,Health & Housing,Chemicals,20/06/2016,bpc004177,417.68
Lancaster City Council,30UH,Countrystyle Meats,Environmental Services,Materials For Resale,15/04/2016,33181,495.38
Lancaster City Council,30UH,Countrystyle Meats,Environmental Services,Materials For Resale,01/06/2016,33828,1341.92
Lancaster City Council,30UH,CPC,Regeneration and Planning,Equipment and Tools - General,18/05/2016,npc001218,265
Lancaster City Council,30UH,CPC,Regeneration and Planning,Equipment and Tools - General,23/06/2016,npc001275,47.29
Lancaster City Council,30UH,Craftis,Health & Housing,Materials - General,17/05/2016,bpc004113,109.79
Lancaster City Council,30UH,CRAVEN HOTEL,Resources,Service Training Budget,07/04/2016,jpc000704,33.33
Lancaster City Council,30UH,Createsend,Regeneration and Planning,Marketing,20/05/2016,npc001229,20.15
Lancaster City Council,30UH,Crucial.com,Resources,Purchase Of Equipment,27/04/2016,jpc000719,46.99
Lancaster City Council,30UH,CS Catering Equipment,Environmental Services,Equipment and Tools - General,29/04/2016,33359,482
Lancaster City Council,30UH,Cumbria Green Fuels,Regeneration and Planning,Misc. Energy Charges,12/04/2016,npc001167,252.38
Lancaster City Council,30UH,Cumbria Green Fuels,Regeneration and Planning,Misc. Energy Charges,03/05/2016,npc001192,3.98
Lancaster City Council,30UH,Cunningham Jeweller,Resources,Long Service Awards,07/04/2016,fpc000169,125
Lancaster City Council,30UH,Currys,Health & Housing,Computer Equipment,01/04/2016,bpc003993,166.61
Lancaster City Council,30UH,Currys,Resources,Equipment and Tools - General,13/06/2016,ppc000512,249.99
Lancaster City Council,30UH,Currys,Resources,Equipment and Tools - General,13/06/2016,ppc000513,266.64
Lancaster City Council,30UH,Dartfrog,Environmental Services,Materials - General,27/04/2016,33300,32.66
Lancaster City Council,30UH,David Willan,Environmental Services,Materials For Resale,15/04/2016,33180,814.99
Lancaster City Council,30UH,David Willan,Environmental Services,Materials For Resale,19/05/2016,33661,1057.08
Lancaster City Council,30UH,David Willan,Environmental Services,Materials For Resale,15/06/2016,33976,823.55
Lancaster City Council,30UH,DELL,Resources,Infrastructure - Update & Maintenance,18/05/2016,jpc000740,353
Lancaster City Council,30UH,Deltawaite Ltd,Environmental Services,Clothing & Uniforms,25/05/2016,33724,36.45
Lancaster City Council,30UH,Dennis Barnfield,Environmental Services,Materials - General,27/04/2016,33314,3.32
Lancaster City Council,30UH,Desktop Driving,Environmental Services,Equipment and Tools - General,19/05/2016,33961,12.72
Lancaster City Council,30UH,Desktop Driving,Environmental Services,Equipment and Tools - General,19/05/2016,33960,38.65
Lancaster City Council,30UH,desktop innovations,Health & Housing,Equipment and Tools - General,03/05/2016,spc001590,25.94
Lancaster City Council,30UH,Direct 365,Health & Housing,Equipment and Tools - General,22/04/2016,bpc004026,328.5
Lancaster City Council,30UH,Direct Parts Supply Ltd,Health & Housing,Equipment and Tools - General,27/06/2016,bpc004217,489
Lancaster City Council,30UH,Directa,Regeneration and Planning,Equipment and Tools - General,20/06/2016,npc001271,175.2
Lancaster City Council,30UH,Disclosure Scotland,Resources,Infrastructure - Update & Maintenance,16/05/2016,jpc000736,20.83
Lancaster City Council,30UH,Dixons,Health & Housing,Equipment and Tools - General,23/05/2016,spc001634,164.92
Lancaster City Council,30UH,DODS,Resources,Service Training Budget,27/04/2016,jpc000715,175
Lancaster City Council,30UH,Dods Parliamentary Communications Ltd,Regeneration and Planning,Service Training Budget,25/05/2016,npc001235,370
Lancaster City Council,30UH,Dorrigo,Regeneration and Planning,Materials For Resale,12/04/2016,33341,395.46
Lancaster City Council,30UH,DSA,Environmental Services,Vehicle Licences,11/05/2016,33528,23
Lancaster City Council,30UH,DSDM,Resources,Services - Consultants,16/06/2016,jpc000782,50
Lancaster City Council,30UH,DSDM,Resources,Services - Consultants,16/06/2016,jpc000783,50
Lancaster City Council,30UH,Dunelm Ltd,Environmental Services,Exhibitions & Events,14/05/2016,33577,25.66
Lancaster City Council,30UH,Dunelm Ltd,Health & Housing,Equipment and Tools - General,16/05/2016,bpc004107,49.99
Lancaster City Council,30UH,Dunelm Ltd,Health & Housing,Equipment and Tools - General,18/05/2016,bpc004116,9.97
Lancaster City Council,30UH,Dunelm Ltd,Environmental Services,Exhibitions & Events,19/05/2016,33668,23.26
Lancaster City Council,30UH,Dvla,Environmental Services,Materials - General,11/04/2016,33131,205
Lancaster City Council,30UH,Dvla,Environmental Services,Vehicle Licences,03/05/2016,33416,232.5
Lancaster City Council,30UH,Dvla,Environmental Services,Vehicle Licences,09/05/2016,33481,232.5
Lancaster City Council,30UH,Dvla,Environmental Services,Vehicle Licences,09/05/2016,33482,232.5
Lancaster City Council,30UH,Dvla,Environmental Services,Vehicle Licences,09/05/2016,33483,232.5
Lancaster City Council,30UH,Dvla,Environmental Services,Vehicle Licences,09/05/2016,33484,232.5
Lancaster City Council,30UH,Dvla,Environmental Services,Vehicle Licences,09/05/2016,33485,232.5
Lancaster City Council,30UH,Dvla,Environmental Services,Vehicle Licences,09/05/2016,33486,232.5
Lancaster City Council,30UH,Dvla,Environmental Services,Vehicle Licences,09/05/2016,33487,232.5
Lancaster City Council,30UH,Dvla,Environmental Services,Vehicle Licences,09/05/2016,33488,232.5
Lancaster City Council,30UH,Dvla,Environmental Services,Vehicle Licences,09/05/2016,33489,232.5
Lancaster City Council,30UH,Dvla,Environmental Services,Vehicle Licences,09/05/2016,33490,232.5
Lancaster City Council,30UH,Dvla,Environmental Services,Vehicle Licences,09/05/2016,33491,232.5
Lancaster City Council,30UH,Dvla,Environmental Services,Vehicle Licences,09/05/2016,33492,232.5
Lancaster City Council,30UH,Dvla,Environmental Services,Vehicle Licences,09/05/2016,33493,232.5
Lancaster City Council,30UH,Dvla,Environmental Services,Vehicle Licences,09/05/2016,33494,232.5
Lancaster City Council,30UH,Dvla,Environmental Services,Vehicle Licences,09/05/2016,33495,232.5
Lancaster City Council,30UH,Dvla,Environmental Services,Vehicle Licences,09/05/2016,33496,232.5
Lancaster City Council,30UH,Dvla,Environmental Services,Vehicle Licences,14/06/2016,33965,232.5
Lancaster City Council,30UH,Dvla,Environmental Services,Vehicle Licences,14/06/2016,33966,232.5
Lancaster City Council,30UH,Dvla,Environmental Services,Vehicle Licences,14/06/2016,33968,232.5
Lancaster City Council,30UH,DW Fitness,Health & Housing,Clothing & Uniforms,09/05/2016,bpc004087,542.88
Lancaster City Council,30UH,Dyno Start Carnforth,Health & Housing,Equipment and Tools - General,12/05/2016,bpc004093,521.5
Lancaster City Council,30UH,Ebay,Environmental Services,Office Equipment,01/06/2016,33909,58.32
Lancaster City Council,30UH,ecotricity,Regeneration and Planning,Electricity,12/04/2016,npc001166,31.11
Lancaster City Council,30UH,ecotricity,Regeneration and Planning,Electricity,10/05/2016,npc001206,26.15
Lancaster City Council,30UH,ecotricity,Regeneration and Planning,Electricity,07/06/2016,npc001257,23.31
Lancaster City Council,30UH,EElectricshop.com,Health & Housing,Equipment and Tools - General,07/04/2016,spc001544,165.83
Lancaster City Council,30UH,EKM Powershop,Regeneration and Planning,Software Purchase\Licences,05/05/2016,33454,29.98
Lancaster City Council,30UH,EKM Powershop,Regeneration and Planning,Software Purchase\Licences,06/06/2016,33879,29.98
Lancaster City Council,30UH,EKM Powershop,Regeneration and Planning,Software Purchase\Licences,30/06/2016,34143,29.98
Lancaster City Council,30UH,Electronic Temperature Instume,Health & Housing,Corporate Safety,27/05/2016,spc001651,8.67
Lancaster City Council,30UH,English lakes,Regeneration and Planning,Bar Supplies,12/04/2016,npc001198,29.96
Lancaster City Council,30UH,Euro Car Parts,Health & Housing,Equipment and Tools - General,21/04/2016,bpc004023,7.7
Lancaster City Council,30UH,EURO OFFICE,Environmental Services,Printing & Stationery,05/05/2016,33442,19.54
Lancaster City Council,30UH,EuroCarParts.com,Environmental Services,Equipment and Tools - General,14/05/2016,33578,34.37
Lancaster City Council,30UH,Expedite Electronics,Resources,Purchase Of Equipment,27/05/2016,jpc000741,613.83
Lancaster City Council,30UH,Extreme Cool Limited,Health & Housing,Services - General,12/04/2016,bpc004012,333.33
Lancaster City Council,30UH,F & M Technology,Health & Housing,IT Consumables,08/04/2016,spc001545,34.98
Lancaster City Council,30UH,F R Jones,Environmental Services,Equipment and Tools - General,22/04/2016,33233,749
Lancaster City Council,30UH,F R Jones,Environmental Services,Equipment and Tools - General,19/05/2016,33648,281.22
Lancaster City Council,30UH,Facebook,Regeneration and Planning,Marketing,01/04/2016,npc001124,233.05
Lancaster City Council,30UH,Facebook,Regeneration and Planning,Marketing,01/04/2016,npc001137,6.42
Lancaster City Council,30UH,Facebook,Regeneration and Planning,Miscellaneous Advertising,04/04/2016,npc001145,26.57
Lancaster City Council,30UH,Facebook,Regeneration and Planning,Miscellaneous Advertising,30/06/2016,npc001285,105.57
Lancaster City Council,30UH,Facebook,Regeneration and Planning,Miscellaneous Advertising,06/05/2016,33461,50
Lancaster City Council,30UH,Facebook,Regeneration and Planning,Marketing,03/05/2016,npc001191,49.65
Lancaster City Council,30UH,Farmfoods,Governance,Printing & Stationery,04/05/2016,dpc000390,31.58
Lancaster City Council,30UH,Farmfoods,Governance,Printing & Stationery,20/06/2016,dpc000412,20.55
Lancaster City Council,30UH,Fast Keys,Resources,Equipment and Tools - General,23/06/2016,ppc000521,21.38
Lancaster City Council,30UH,Fast Keys,Resources,Fixtures & Fittings - General,23/06/2016,ppc000521,19
Lancaster City Council,30UH,Fast Keys,Resources,Equipment and Tools - General,03/05/2016,ppc000484,58.9
Lancaster City Council,30UH,Fast Keys,Resources,Equipment and Tools - General,01/06/2016,ppc000501,5.63
Lancaster City Council,30UH,Fast Keys,Resources,Equipment and Tools - General,01/06/2016,ppc000502,10.23
Lancaster City Council,30UH,Fast Keys,Resources,Equipment and Tools - General,01/06/2016,ppc000503,5.63
Lancaster City Council,30UH,Fawcetts Country Sports,Regeneration and Planning,Long Service Awards,07/04/2016,npc001159,125
Lancaster City Council,30UH,Fayre and square,Regeneration and Planning,Catering Provisions,28/06/2016,npc001277,40.52
Lancaster City Council,30UH,Fayre and Square,Regeneration and Planning,Exhibitions & Events - Expenses,05/04/2016,npc001151,30.81
Lancaster City Council,30UH,Fayre and Square,Regeneration and Planning,Exhibitions & Events - Expenses,10/05/2016,npc001203,76.21
Lancaster City Council,30UH,Fayre and Square,Regeneration and Planning,Exhibitions & Events - Expenses,21/04/2016,npc001180,5.82
Lancaster City Council,30UH,Fayre and Square,Regeneration and Planning,Exhibitions & Events - Expenses,13/05/2016,npc001212,15.06
Lancaster City Council,30UH,Fayre and Square,Regeneration and Planning,Exhibitions & Events - Expenses,27/05/2016,npc001240,30.45
Lancaster City Council,30UH,Fiddlers Lancashire Crisps,Environmental Services,Materials For Resale,27/04/2016,33308,77.2
Lancaster City Council,30UH,Fiddlers Lancashire Crisps,Environmental Services,Materials For Resale,19/05/2016,33654,144.75
Lancaster City Council,30UH,Fiddlers Lancashire Crisps,Environmental Services,Materials For Resale,15/06/2016,33980,67.55
Lancaster City Council,30UH,First TransPennine,Resources,Infrastructure - Update & Maintenance,07/04/2016,jpc000703,23.9
Lancaster City Council,30UH,firstsafetysigns,Health & Housing,Equipment and Tools - General,05/05/2016,bpc004083,14.96
Lancaster City Council,30UH,Fishergate Centre,Health & Housing,Service Training Budget,14/06/2016,spc001669,2.08
Lancaster City Council,30UH,Fishpond.co.uk,Resources,Infrastructure - Update & Maintenance,21/04/2016,jpc000737,61.03
Lancaster City Council,30UH,Focus Training Ltd,Health & Housing,Service Training Budget,28/04/2016,bpc004059,208.33
Lancaster City Council,30UH,Focus Training Ltd,Health & Housing,Service Training Budget,28/04/2016,bpc004061,616.67
Lancaster City Council,30UH,fone for flowers,Health & Housing,Materials - General,16/05/2016,bpc004110,25
Lancaster City Council,30UH,FTA,Environmental Services,Subscriptions,11/05/2016,33526,963
Lancaster City Council,30UH,Galgate Pet and Equestrian Sup,Environmental Services,Materials - General,07/04/2016,33117,16.4
Lancaster City Council,30UH,Gas Safety Shop ,Environmental Services,Other Construction Costs,19/05/2016,33675,80
Lancaster City Council,30UH,Gas Safety Shop ,Environmental Services,Other Construction Costs,19/05/2016,33955,6.99
Lancaster City Council,30UH,Gas Safety Shop ,Environmental Services,Other Construction Costs,19/05/2016,33956,100.51
Lancaster City Council,30UH,Gateleys,Governance,Services - Consultants,16/06/2016,lpc000385,950
Lancaster City Council,30UH,George Speight & Sons Ltd,Environmental Services,Materials - General,15/06/2016,33977,27.55
Lancaster City Council,30UH,George Speight & Sons Ltd,Environmental Services,Materials For Resale,15/06/2016,33977,1008.31
Lancaster City Council,30UH,George Speight & Sons Ltd,Environmental Services,Materials - General,19/05/2016,33662,71.95
Lancaster City Council,30UH,George Speight & Sons Ltd,Environmental Services,Materials For Resale,19/05/2016,33662,722.07
Lancaster City Council,30UH,Gladstoneboots Ltd,Environmental Services,Clothing & Uniforms,10/05/2016,33524,84.98
Lancaster City Council,30UH,Google,Regeneration and Planning,Miscellaneous Advertising,04/04/2016,npc001148,23.4
Lancaster City Council,30UH,GRASS DIRECT,Environmental Services,Materials - General,08/04/2016,33122,74.87
Lancaster City Council,30UH,Gulliver`s World,Health & Housing,Services - General,28/04/2016,bpc004054,373.33
Lancaster City Council,30UH,Gulliver`s World,Health & Housing,Services - General,28/04/2016,bpc004064,-105
Lancaster City Council,30UH,H.C.Slingsby plc,Resources,R & M - Buildings,23/06/2016,ppc000519,283
Lancaster City Council,30UH,Hala Pet Stores,Environmental Services,Materials - General,27/04/2016,33305,49.41
Lancaster City Council,30UH,Hala Pet Stores,Environmental Services,Materials - General,19/05/2016,33653,200.16
Lancaster City Council,30UH,Halfords,Health & Housing,Materials - General,26/05/2016,spc001647,76.65
Lancaster City Council,30UH,Hancocks,Health & Housing,Equipment and Tools - General,25/05/2016,bpc004127,166.67
Lancaster City Council,30UH,Hartley Hire,Environmental Services,Contract Maintenance,22/04/2016,33232,269.1
Lancaster City Council,30UH,Hartley Hire,Environmental Services,Contract Maintenance,01/06/2016,33842,54
Lancaster City Council,30UH,Hawkins Bazaar,Health & Housing,Services - General,05/04/2016,bpc004007,108.34
Lancaster City Council,30UH,HCS,Resources,Cleaning Materials,27/06/2016,ppc000526,164.24
Lancaster City Council,30UH,HCS,Regeneration and Planning,Cleaning Materials,01/06/2016,npc001241,217.22
Lancaster City Council,30UH,HCS,Health & Housing,Cleansing Equipment,25/04/2016,bpc004030,174
Lancaster City Council,30UH,HCS,Health & Housing,Cleansing Equipment,25/04/2016,bpc004031,26.24
Lancaster City Council,30UH,HCS,Health & Housing,Cleansing Equipment,01/06/2016,bpc004145,66.64
Lancaster City Council,30UH,HCS,Health & Housing,Cleansing Equipment,22/06/2016,bpc004186,71.58
Lancaster City Council,30UH,HCS,Health & Housing,Cleansing Equipment,22/06/2016,bpc004187,10.08
Lancaster City Council,30UH,Health and Safety Lab,Governance,Services - Medical Fees,05/04/2016,lpc000369,636
Lancaster City Council,30UH,Hilton Cardiff,Health & Housing,Equipment and Tools - General,23/05/2016,spc001639,22
Lancaster City Council,30UH,Holdz,Environmental Services,Playground Improvements,27/04/2016,33320,237.5
Lancaster City Council,30UH,Holdz,Environmental Services,Playground Improvements,03/05/2016,33401,117.92
Lancaster City Council,30UH,Holdz,Environmental Services,Playground Improvements,24/05/2016,33712,47.5
Lancaster City Council,30UH,Home Bargains,Governance,Civic Receptions & Mayoral Functions,17/05/2016,dpc000392,2.15
Lancaster City Council,30UH,Home Bargains,Regeneration and Planning,Printing & Stationery,07/06/2016,npc001255,9.97
Lancaster City Council,30UH,Homebase,Health & Housing,Equipment and Tools - General,05/05/2016,bpc004080,26.07
Lancaster City Council,30UH,Homebase,Environmental Services,Equipment and Tools - General,02/05/2016,33382,19
Lancaster City Council,30UH,Homebase,Regeneration and Planning,Office Equipment,09/06/2016,33934,4.72
Lancaster City Council,30UH,Homes Direct,Environmental Services,Exhibitions & Events,07/04/2016,33119,259.96
Lancaster City Council,30UH,Honeycomb Ltd,Regeneration and Planning,Materials For Resale,12/04/2016,33342,190.91
Lancaster City Council,30UH,Hootsuite,Regeneration and Planning,Internet Provision,05/05/2016,33453,100.66
Lancaster City Council,30UH,Hootsuite,Regeneration and Planning,Marketing,04/04/2016,npc001149,5.28
Lancaster City Council,30UH,Hootsuite,Regeneration and Planning,Marketing,03/05/2016,npc001190,5.14
Lancaster City Council,30UH,Hootsuite,Regeneration and Planning,Marketing,02/06/2016,npc001251,5.08
Lancaster City Council,30UH,Hootsuite,Regeneration and Planning,Marketing,30/06/2016,npc001286,5.05
Lancaster City Council,30UH,Houghtons,Regeneration and Planning,Other Cleaning,27/04/2016,npc001189,5.99
Lancaster City Council,30UH,HQN,Health & Housing,Service Training Budget,18/05/2016,spc001622,72
Lancaster City Council,30UH,Hygiene Cleaning Supplies Ltd,Regeneration and Planning,Cleaning Materials,11/04/2016,npc001163,217.33
Lancaster City Council,30UH,Hygiene Cleaning Supplies Ltd,Environmental Services,Cleaning Materials,25/05/2016,33731,193.5
Lancaster City Council,30UH,Hygiene Cleaning Supplies Ltd,Resources,Cleaning Materials,04/04/2016,ppc000470,75.9
Lancaster City Council,30UH,Hygiene Cleaning Supplies Ltd,Resources,Cleaning Materials,03/05/2016,ppc000487,388.3
Lancaster City Council,30UH,Hygiene Cleaning Supplies Ltd,Resources,Cleaning Materials,04/05/2016,ppc000488,132.8
Lancaster City Council,30UH,Hygiene Cleaning Supplies Ltd,Resources,Cleaning Materials,31/05/2016,ppc000498,26.18
Lancaster City Council,30UH,Hygiene Cleaning Supplies Ltd,Resources,Cleaning Materials,23/06/2016,ppc000522,39.96
Lancaster City Council,30UH,Hygiene Cleaning Supplies Ltd,Resources,Cleaning Materials,28/06/2016,ppc000527,79.84
Lancaster City Council,30UH,Hygiene Cleaning Supplies Ltd,Environmental Services,Services - Trade Refuse,25/05/2016,33730,109.5
Lancaster City Council,30UH,Hyndburnleisure,Health & Housing,Service Training Budget,01/04/2016,bpc003992,175
Lancaster City Council,30UH,Hyslops Office Supplies,Resources,Fixtures & Fittings - General,12/05/2016,ppc000491,11.95
Lancaster City Council,30UH,IBIS,Resources,Infrastructure - Update & Maintenance,07/04/2016,jpc000701,83.5
Lancaster City Council,30UH,ico,Resources,Information Management,14/06/2016,fpc000183,35
Lancaster City Council,30UH,ico,Resources,Information Management,14/06/2016,fpc000184,35
Lancaster City Council,30UH,image on ltd,Health & Housing,Clothing & Uniforms,01/04/2016,bpc003980,68
Lancaster City Council,30UH,Information Commissioner`s Office,Governance,Information Management,01/06/2016,dpc000403,455
Lancaster City Council,30UH,Information Commissioner`s Office,Governance,Information Management,01/06/2016,dpc000404,385
Lancaster City Council,30UH,Information Commissioner`s Office,Governance,Sundry Expenses,21/06/2016,dpc000413,35
Lancaster City Council,30UH,Instantprint,Health & Housing,Printing & Stationery,06/06/2016,bpc004157,49.16
Lancaster City Council,30UH,Instantprint,Regeneration and Planning,Marketing,14/04/2016,npc001177,158
Lancaster City Council,30UH,Instantprint,Regeneration and Planning,Marketing,26/04/2016,npc001183,33.16
Lancaster City Council,30UH,Instantprint,Regeneration and Planning,Marketing,12/05/2016,npc001209,31.16
Lancaster City Council,30UH,Instantprint,Regeneration and Planning,Marketing,12/05/2016,npc001210,32.16
Lancaster City Council,30UH,Instantprint,Regeneration and Planning,Marketing,23/05/2016,npc001232,18.33
Lancaster City Council,30UH,Instantprint,Regeneration and Planning,Marketing,03/06/2016,npc001252,30.16
Lancaster City Council,30UH,Instantprint,Regeneration and Planning,Marketing,10/06/2016,npc001263,45.16
Lancaster City Council,30UH,Instantprint,Regeneration and Planning,Printing & Stationery,12/05/2016,33561,145
Lancaster City Council,30UH,Instantprint,Regeneration and Planning,Printing & Stationery,08/06/2016,33925,4.16
Lancaster City Council,30UH,Instantprint,Regeneration and Planning,Printing & Stationery,08/06/2016,33926,58
Lancaster City Council,30UH,Instantprint,Regeneration and Planning,Printing & Stationery,30/06/2016,34142,138.33
Lancaster City Council,30UH,Instantprint,Environmental Services,Printing & Stationery,14/05/2016,33579,19.16
Lancaster City Council,30UH,Instantprint,Regeneration and Planning,Printing & Stationery,14/04/2016,npc001176,59.16
Lancaster City Council,30UH,Instantprint,Regeneration and Planning,Printing & Stationery,05/05/2016,33451,18.32
Lancaster City Council,30UH,Institute of Swimming,Health & Housing,Service Training Budget,23/05/2016,bpc004123,395
Lancaster City Council,30UH,Institute of Acoustice,Health & Housing,Equipment and Tools - General,18/05/2016,spc001627,20
Lancaster City Council,30UH,Institute of Licensing(Events) Limited,Health & Housing,Service Training Budget,12/04/2016,spc001548,145
Lancaster City Council,30UH,Institute of Swimming,Health & Housing,Service Training Budget,23/06/2016,bpc004198,299
Lancaster City Council,30UH,IOSH,Governance,Corporate Training Budget,28/06/2016,lpc000390,105
Lancaster City Council,30UH,ITC Sales,Resources,Computer Equipment,27/05/2016,jpc000748,156.95
Lancaster City Council,30UH,ITC Sales,Resources,Computer Equipment,27/05/2016,jpc000749,141.47
Lancaster City Council,30UH,ITC Sales,Resources,Computer Equipment,27/05/2016,jpc000750,141.47
Lancaster City Council,30UH,ITC Sales,Resources,Computer Equipment,27/05/2016,jpc000751,141.47
Lancaster City Council,30UH,ITC Sales,Resources,Computer Equipment,27/05/2016,jpc000752,141.47
Lancaster City Council,30UH,ITC Sales,Resources,Office Equipment,02/06/2016,jpc000777,199.85
Lancaster City Council,30UH,ITC Sales,Resources,Office Equipment,29/06/2016,jpc000805,144.95
Lancaster City Council,30UH,ITC Sales,Resources,Purchase Of Equipment,29/06/2016,jpc000808,565.9
Lancaster City Council,30UH,J Atkinson & Co,Resources,Equipment and Tools - General,01/04/2016,ppc000461,9898
Lancaster City Council,30UH,J Atkinson & Co,Health & Housing,Equipment and Tools - General,25/05/2016,bpc004131,133.33
Lancaster City Council,30UH,J Atkinson & Co,Health & Housing,Materials For Resale,28/04/2016,bpc004060,95.4
Lancaster City Council,30UH,J Atkinson & Co,Health & Housing,Materials For Resale,28/04/2016,bpc004055,113.68
Lancaster City Council,30UH,J Atkinson & Co,Health & Housing,Materials For Resale,28/04/2016,bpc004058,125.4
Lancaster City Council,30UH,J Atkinson & Co,Health & Housing,Materials For Resale,25/05/2016,bpc004126,74.4
Lancaster City Council,30UH,J Atkinson & Co,Health & Housing,Materials For Resale,27/06/2016,bpc004223,208.8
Lancaster City Council,30UH,J Atkinson & Co,Environmental Services,Materials For Resale,15/06/2016,33981,312.56
Lancaster City Council,30UH,J Atkinson & Co,Environmental Services,Materials For Resale,19/05/2016,33660,1439.56
Lancaster City Council,30UH,Jessops,Regeneration and Planning,Photographic Equipment,04/04/2016,npc001146,49.12
Lancaster City Council,30UH,Jessops,Regeneration and Planning,Photographic Equipment,04/04/2016,npc001147,95.32
Lancaster City Council,30UH,JJ Metcalfe Ltd,Health & Housing,Materials (Minor Adaptations),03/05/2016,spc001585,29.92
Lancaster City Council,30UH,JL Group Ltd,Resources,Printing & Stationery,25/04/2016,ppc000478,530
Lancaster City Council,30UH,JM Pratt Ltd ,Environmental Services,Exhibitions & Events,19/05/2016,33659,90.4
Lancaster City Council,30UH,JM Pratt Ltd ,Environmental Services,Materials For Resale,19/05/2016,33659,945.25
Lancaster City Council,30UH,JMP,Environmental Services,Materials For Resale,27/04/2016,33309,722.95
Lancaster City Council,30UH,JMP ,Environmental Services,Materials For Resale,15/06/2016,33975,837.48
Lancaster City Council,30UH,John Monaghan Ltd,Resources,R & M - Buildings,20/06/2016,ppc000516,69.95
Lancaster City Council,30UH,Jordans Glass Services,Resources,R & M - Buildings,17/06/2016,ppc000515,130.58
Lancaster City Council,30UH,JOSEPH AND CO,Environmental Services,Long Service Awards,29/04/2016,33367,125
Lancaster City Council,30UH,JPL,Health & Housing,Equipment and Tools - General,05/05/2016,bpc004081,199.61
Lancaster City Council,30UH,JPL,Health & Housing,Materials For Resale,05/05/2016,bpc004082,125.18
Lancaster City Council,30UH,Kalamazoo,Health & Housing,Equipment and Tools - General,26/04/2016,bpc004051,45.32
Lancaster City Council,30UH,Kays Cards Ltd,Environmental Services,Equipment and Tools - General,14/05/2016,33581,31.96
Lancaster City Council,30UH,Kerry`s Creative Cakes,Regeneration and Planning,Services - General,17/05/2016,npc001215,73.2
Lancaster City Council,30UH,Keycraft Ltd,Environmental Services,Materials For Resale,19/05/2016,33656,980
Lancaster City Council,30UH,Killgerm Chemicals Ltd,Health & Housing,Equipment and Tools - General,01/04/2016,spc001528,431.26
Lancaster City Council,30UH,Killgerm Chemicals Ltd,Health & Housing,Equipment and Tools - General,10/05/2016,spc001597,1244.72
Lancaster City Council,30UH,Killgerm Chemicals Ltd,Health & Housing,Equipment and Tools - General,10/05/2016,spc001598,368.92
Lancaster City Council,30UH,Killgerm Chemicals Ltd,Health & Housing,Equipment and Tools - General,10/05/2016,spc001599,1220.87
Lancaster City Council,30UH,Killgerm Chemicals Ltd,Health & Housing,Equipment and Tools - General,10/05/2016,spc001600,880
Lancaster City Council,30UH,Killgerm Chemicals Ltd,Health & Housing,Equipment and Tools - General,11/05/2016,spc001603,90
Lancaster City Council,30UH,Killgerm Chemicals Ltd,Health & Housing,Equipment and Tools - General,18/05/2016,spc001623,354.8
Lancaster City Council,30UH,L.C.R. Systems Limited,Resources,Equipment and Tools - General,01/04/2016,ppc000466,2295
Lancaster City Council,30UH,Lakeland,Health & Housing,Equipment and Tools - General,20/04/2016,spc001560,24.33
Lancaster City Council,30UH,Lakes Ice cream,Regeneration and Planning,Bar Supplies,19/05/2016,npc001221,59.92
Lancaster City Council,30UH,Lampshop Online,Resources,R & M - Buildings,01/06/2016,ppc000505,104.7
Lancaster City Council,30UH,Lancashire County Council,Health & Housing,Equipment and Tools - General,05/04/2016,spc001537,4
Lancaster City Council,30UH,Lancashire County Council,Health & Housing,Equipment and Tools - General,02/06/2016,spc001659,25
Lancaster City Council,30UH,Lancaster Brewery,Regeneration and Planning,Bar Supplies,01/04/2016,npc001143,135
Lancaster City Council,30UH,Lancaster Brewery,Regeneration and Planning,Bar Supplies,19/05/2016,npc001222,67.5
Lancaster City Council,30UH,Lancaster Brewery,Regeneration and Planning,Bar Supplies,02/06/2016,npc001248,101.25
Lancaster City Council,30UH,Lancaster Brewery,Environmental Services,Materials For Resale,15/04/2016,33183,80
Lancaster City Council,30UH,Lancaster Brewery,Environmental Services,Materials For Resale,19/05/2016,33658,710
Lancaster City Council,30UH,Lancaster City Laundry,Resources,Laundry,01/06/2016,ppc000504,140
Lancaster City Council,30UH,Lancaster Training Services Ltd,Environmental Services,Subscriptions,11/05/2016,33525,20.83
Lancaster City Council,30UH,Lancaster Training Services Ltd,Health & Housing,Service Training Budget,27/04/2016,spc001574,90
Lancaster City Council,30UH,Lathams,Environmental Services,Materials For Resale,15/04/2016,33185,1475.92
Lancaster City Council,30UH,Lathams,Environmental Services,Materials For Resale,01/06/2016,33826,1543.02
Lancaster City Council,30UH,LBS,Environmental Services,Materials - General,03/05/2016,33399,347.88
Lancaster City Council,30UH,LCR,Environmental Services,Contract Maintenance,27/04/2016,33302,1005
Lancaster City Council,30UH,LCR,Regeneration and Planning,Office Equipment,04/05/2016,33424,123
Lancaster City Council,30UH,LED Supplies (UK) Ltd,Health & Housing,Equipment and Tools - General,19/04/2016,spc001557,69.98
Lancaster City Council,30UH,Legend Cookshop,Environmental Services,Equipment and Tools - General,20/05/2016,33687,-374.75
Lancaster City Council,30UH,Legend Cookshops,Environmental Services,Equipment and Tools - General,29/04/2016,33358,374.75
Lancaster City Council,30UH,Les Mills,Health & Housing,Miscellaneous Licences,29/05/2016,bpc004137,228.27
Lancaster City Council,30UH,Les Mills,Health & Housing,Equipment and Tools - General,06/06/2016,bpc004162,114.13
Lancaster City Council,30UH,Lilly Exotics Ltd,Environmental Services,Materials - General,27/04/2016,33301,15.99
Lancaster City Council,30UH,Lloyd Worrall,Resources,Fixtures & Fittings - General,19/04/2016,ppc000476,14.6
Lancaster City Council,30UH,Lloyd Worrall,Resources,Fixtures & Fittings - General,13/06/2016,ppc000510,13.6
Lancaster City Council,30UH,Londis,Regeneration and Planning,AONB Executive Support,03/05/2016,npc001193,2.48
Lancaster City Council,30UH,Londis,Regeneration and Planning,AONB Executive Support,03/05/2016,npc001194,2.48
Lancaster City Council,30UH,London Pupae Supplies,Environmental Services,Materials - General,27/04/2016,33304,353.2
Lancaster City Council,30UH,London Underground,Health & Housing,Use Of Public Tpt - Officers,04/04/2016,bpc003998,12.1
Lancaster City Council,30UH,Longhorn,Health & Housing,Equipment and Tools - General,13/05/2016,bpc004094,6
Lancaster City Council,30UH,Lothersdale hotel,Regeneration and Planning,Exhibitions & Events - Expenses,19/05/2016,npc001223,290.83
Lancaster City Council,30UH,Lothersdale hotel,Regeneration and Planning,Exhibitions & Events - Expenses,10/06/2016,npc001266,153.33
Lancaster City Council,30UH,Lyreco UK Limited,Governance,Corporate Training Budget,05/04/2016,lpc000374,75.33
Lancaster City Council,30UH,Lyreco UK Limited,Regeneration and Planning,Other Cleaning,07/06/2016,npc001258,35.27
Lancaster City Council,30UH,Lyreco UK Limited,Resources,Printing & Stationery,11/05/2016,fpc000177,32.5
Lancaster City Council,30UH,Lyreco UK Limited,Resources,Printing & Stationery,11/05/2016,fpc000178,6.78
Lancaster City Council,30UH,Lyreco UK Limited,Regeneration and Planning,Printing & Stationery,07/06/2016,npc001258,27.17
Lancaster City Council,30UH,Lyreco UK Limited,Governance,Printing & Stationery,03/05/2016,dpc000389,23.96
Lancaster City Council,30UH,Lyreco UK Limited,Governance,Printing & Stationery,19/05/2016,dpc000399,9.07
Lancaster City Council,30UH,Lyreco UK Limited,Regeneration and Planning,Printing & Stationery,02/06/2016,33867,78.95
Lancaster City Council,30UH,Lyreco UK Limited,Regeneration and Planning,Printing & Stationery,06/06/2016,33885,54.57
Lancaster City Council,30UH,Lyreco UK Limited,Environmental Services,Printing & Stationery,01/04/2016,32942,150.16
Lancaster City Council,30UH,Lyreco UK Limited,Environmental Services,Printing & Stationery,19/05/2016,33666,53.8
Lancaster City Council,30UH,Lyreco UK Limited,Environmental Services,Printing & Stationery,19/05/2016,33670,139.78
Lancaster City Council,30UH,Lyreco UK Limited,Governance,Printing & Stationery,03/05/2016,lpc000375,32.3
Lancaster City Council,30UH,Lyreco UK Limited,Governance,Printing & Stationery,10/05/2016,lpc000377,65.7
Lancaster City Council,30UH,Lyreco UK Limited,Governance,Printing & Stationery,24/05/2016,lpc000379,34
Lancaster City Council,30UH,Lyreco UK Limited,Governance,Printing & Stationery,07/06/2016,lpc000382,44.43
Lancaster City Council,30UH,Lyreco UK Limited,Governance,Printing & Stationery,07/06/2016,lpc000384,16.94
Lancaster City Council,30UH,Lyreco UK Limited,Governance,Printing & Stationery,16/06/2016,lpc000386,29.62
Lancaster City Council,30UH,Lyreco UK Limited,Management Team,Printing & Stationery,01/04/2016,mpc000052,5.5
Lancaster City Council,30UH,Lyreco UK Limited,Resources,Printing & Stationery,07/06/2016,ppc000506,45.4
Lancaster City Council,30UH,Lyreco UK Limited,Governance,Services - Consultants,05/04/2016,lpc000372,28.41
Lancaster City Council,30UH,Lyreco UK Limited,Governance,Services - Medical Fees,05/04/2016,lpc000373,70.17
Lancaster City Council,30UH,Lyreco UK Limited,Health & Housing,Printing & Stationery,01/04/2016,bpc003968,1327.75
Lancaster City Council,30UH,Lyreco UK Limited,Environmental Services,Clothing & Uniforms,07/06/2016,34180,104.92
Lancaster City Council,30UH,Lyreco UK Limited,Environmental Services,Clothing & Uniforms,07/06/2016,34181,-46
Lancaster City Council,30UH,Lyreco UK Limited,Governance,Printing & Stationery,20/04/2016,dpc000385,30.66
Lancaster City Council,30UH,Lyreco UK Limited,Governance,Printing & Stationery,21/04/2016,dpc000386,67.05
Lancaster City Council,30UH,Lyreco UK Limited,Governance,Printing & Stationery,26/04/2016,dpc000387,42.54
Lancaster City Council,30UH,Lyreco UK Limited,Governance,Printing & Stationery,13/06/2016,dpc000409,76.39
Lancaster City Council,30UH,Lyreco UK Limited,Governance,Printing & Stationery,17/06/2016,dpc000410,71.15
Lancaster City Council,30UH,Lyreco UK Limited,Environmental Services,Printing & Stationery,25/05/2016,33722,8.78
Lancaster City Council,30UH,Lyreco UK Limited,Governance,Services - General,04/04/2016,dpc000378,101.01
Lancaster City Council,30UH,Lyreco UK Limited,Resources,P Card Dispute Code,15/04/2016,39925,1.5
Lancaster City Council,30UH,Lyreco UK Limited,Resources,P Card Dispute Code,04/05/2016,39925,-1.5
Lancaster City Council,30UH,Marks and Spencer,Governance,Civic Receptions & Mayoral Functions,14/04/2016,dpc000381,180.5
Lancaster City Council,30UH,Mad About Flags,Environmental Services,Equipment and Tools - General,03/05/2016,33405,140.83
Lancaster City Council,30UH,Mailchimp,Regeneration and Planning,Marketing,25/04/2016,npc001182,53.1
Lancaster City Council,30UH,Mailchimp,Regeneration and Planning,Marketing,20/05/2016,npc001230,58.97
Lancaster City Council,30UH,Mailchimp,Regeneration and Planning,Marketing,20/06/2016,npc001268,60.48
Lancaster City Council,30UH,Makro,Resources,Catering Provisions,13/06/2016,ppc000511,145.4
Lancaster City Council,30UH,Manchester Airport,Health & Housing,Equipment and Tools - General,23/05/2016,spc001637,100
Lancaster City Council,30UH,Maplin,Resources,Infrastructure - Update & Maintenance,15/04/2016,jpc000712,29.97
Lancaster City Council,30UH,Marcus Nelson Consulting Ltd,Health & Housing,Equipment and Tools - General,24/06/2016,spc001678,675
Lancaster City Council,30UH,Marks and Spencer,Health & Housing,Clothing & Uniforms,20/06/2016,bpc004180,30.5
Lancaster City Council,30UH,Marks and Spencer,Management Team,Hospitality,27/05/2016,mpc000055,9.42
Lancaster City Council,30UH,Marks and Spencer,Health & Housing,Clothing & Uniforms,10/05/2016,bpc004089,9
Lancaster City Council,30UH,MARRIOTT,Resources,Service Training Budget,18/05/2016,jpc000738,75
Lancaster City Council,30UH,MARRIOTT,Resources,Service Training Budget,18/05/2016,jpc000739,75
Lancaster City Council,30UH,Matalan,Health & Housing,Clothing & Uniforms,16/05/2016,bpc004102,60
Lancaster City Council,30UH,Matalan,Health & Housing,Clothing & Uniforms,16/05/2016,bpc004112,15
Lancaster City Council,30UH,Matalan,Health & Housing,Clothing & Uniforms,10/06/2016,bpc004170,72
Lancaster City Council,30UH,Matalan,Health & Housing,Clothing & Uniforms,17/05/2016,bpc004114,45
Lancaster City Council,30UH,Max Spielmann,Governance,Civic Receptions & Mayoral Functions,17/05/2016,dpc000397,14.58
Lancaster City Council,30UH,MBL Seminars,Governance,Service Training Budget,18/05/2016,lpc000378,120
Lancaster City Council,30UH,MCPS - PRS,Health & Housing,Equipment and Tools - General,01/06/2016,bpc004141,370
Lancaster City Council,30UH,MCPS-PRS ALLIANCE LTD,Regeneration and Planning,Services - General,27/04/2016,33278,197.9
Lancaster City Council,30UH,Mobility Linx Ltd,Health & Housing,Materials (Minor Adaptations),17/05/2016,spc001620,18
Lancaster City Council,30UH,Mobility Linx Ltd,Health & Housing,Materials - General,28/06/2016,spc001682,10
Lancaster City Council,30UH,Mobility Linx Ltd,Health & Housing,Materials (Minor Adaptations),03/05/2016,spc001589,104.78
Lancaster City Council,30UH,Mobility Linx Ltd,Health & Housing,Materials (Minor Adaptations),28/06/2016,spc001685,100
Lancaster City Council,30UH,MOLES SEEDS,Environmental Services,Materials - General,28/04/2016,33348,7.5
Lancaster City Council,30UH,Morecambe Bay Wines & Spirits Co Ltd,Governance,Civic Receptions & Mayoral Functions,17/05/2016,dpc000396,272.25
Lancaster City Council,30UH,Morplan,Regeneration and Planning,Office Equipment,20/05/2016,33688,25.98
Lancaster City Council,30UH,Morrisions,Regeneration and Planning,Exhibitions & Events - Expenses,13/05/2016,npc001213,10.77
Lancaster City Council,30UH,Morrisions,Regeneration and Planning,Catering Provisions,02/06/2016,npc001249,4
Lancaster City Council,30UH,Morrisions,Regeneration and Planning,Catering Provisions,12/04/2016,npc001170,5.3
Lancaster City Council,30UH,Morrisions,Regeneration and Planning,Catering Provisions,12/04/2016,npc001171,10.82
Lancaster City Council,30UH,Morrisions,Regeneration and Planning,Catering Provisions,19/05/2016,npc001220,21.17
Lancaster City Council,30UH,Morrisions,Regeneration and Planning,Catering Provisions,02/06/2016,npc001246,119.12
Lancaster City Council,30UH,Morrisions,Regeneration and Planning,Equipment and Tools - General,18/04/2016,npc001178,10
Lancaster City Council,30UH,Morrisions,Regeneration and Planning,Equipment and Tools - General,18/04/2016,npc001179,26.67
Lancaster City Council,30UH,Morrisions,Regeneration and Planning,Equipment and Tools - General,19/05/2016,npc001224,12.5
Lancaster City Council,30UH,Morrisions,Regeneration and Planning,Exhibitions & Events - Expenses,02/04/2016,npc001144,15.28
Lancaster City Council,30UH,Morrisions,Regeneration and Planning,Exhibitions & Events - Expenses,08/04/2016,npc001161,17.63
Lancaster City Council,30UH,Morrisions,Regeneration and Planning,Exhibitions & Events - Expenses,06/05/2016,npc001197,34.37
Lancaster City Council,30UH,Morrisions,Regeneration and Planning,Exhibitions & Events - Expenses,19/05/2016,npc001225,1.29
Lancaster City Council,30UH,Morrisions,Regeneration and Planning,Exhibitions & Events - Expenses,27/05/2016,npc001238,36.1
Lancaster City Council,30UH,Morrisions,Regeneration and Planning,Exhibitions & Events - Expenses,27/05/2016,npc001239,10.83
Lancaster City Council,30UH,Morrisions,Regeneration and Planning,Exhibitions & Events - Expenses,20/06/2016,npc001272,20.17
Lancaster City Council,30UH,Morrisions,Regeneration and Planning,Exhibitions & Events - Expenses,29/06/2016,npc001281,23.43
Lancaster City Council,30UH,Morrisions,Regeneration and Planning,Office Equipment,18/05/2016,33643,3.55
Lancaster City Council,30UH,Morrisions,Environmental Services,Other Cleaning,14/05/2016,33582,5.08
Lancaster City Council,30UH,Morrisions,Regeneration and Planning,Printing & Stationery,02/06/2016,npc001245,2.7
Lancaster City Council,30UH,Morrisions,Health & Housing,Tenants Participation,26/05/2016,hpc000394,32.57
Lancaster City Council,30UH,Morrisions,Health & Housing,Materials - General,28/05/2016,bpc004134,7.47
Lancaster City Council,30UH,namesco,Regeneration and Planning,Internet Provision,05/05/2016,33452,124.96
Lancaster City Council,30UH,National cycling centre,Health & Housing,Services - General,12/04/2016,bpc004010,133.33
Lancaster City Council,30UH,National cycling centre,Health & Housing,Services - General,12/04/2016,bpc004011,133.33
Lancaster City Council,30UH,NATIONAL GRID,Environmental Services,Contracted Services,01/04/2016,33006,249.85
Lancaster City Council,30UH,NATIONAL GRID,Environmental Services,Contracted Services,08/06/2016,33924,263
Lancaster City Council,30UH,National Portriat,Health & Housing,Photographic Materials,06/06/2016,bpc004155,72.68
Lancaster City Council,30UH,New Court Hotel,Health & Housing,Equipment and Tools - General,23/05/2016,spc001635,57.5
Lancaster City Council,30UH,Newey & Eyre ,Environmental Services,Equipment and Tools - General,25/05/2016,33723,207.65
Lancaster City Council,30UH,Newitts,Health & Housing,Equipment and Tools - General,10/06/2016,bpc004171,12.49
Lancaster City Council,30UH,Next,Health & Housing,Clothing & Uniforms,09/05/2016,bpc004088,517
Lancaster City Council,30UH,Nisbets,Health & Housing,Clothing & Uniforms,16/05/2016,bpc004108,37.68
Lancaster City Council,30UH,Nisbets,Health & Housing,Equipment and Tools - General,30/04/2016,bpc004069,55.72
Lancaster City Council,30UH,Nisbets,Health & Housing,Equipment and Tools - General,16/05/2016,bpc004108,18.43
Lancaster City Council,30UH,Nisbets,Health & Housing,Equipment and Tools - General,23/06/2016,bpc004197,25.16
Lancaster City Council,30UH,Nisbits,Health & Housing,Equipment and Tools - General,18/05/2016,bpc004118,259.98
Lancaster City Council,30UH,Nortech Radio Telephones Ltd,Environmental Services,Equipment and Tools - General,19/04/2016,33202,50
Lancaster City Council,30UH,North Kesteven District Counci,Regeneration and Planning,Subscriptions,22/04/2016,npc001181,495
Lancaster City Council,30UH,Northern Rail,Health & Housing,Service Training Budget,01/04/2016,spc001532,17.3
Lancaster City Council,30UH,Northern Rail,Health & Housing,Service Training Budget,25/04/2016,spc001570,18.9
Lancaster City Council,30UH,Northern Rail,Health & Housing,Service Training Budget,21/04/2016,spc001565,46.9
Lancaster City Council,30UH,Northern Rail,Health & Housing,Service Training Budget,28/04/2016,spc001576,29.9
Lancaster City Council,30UH,Northern Rail,Health & Housing,Tenants Participation,15/06/2016,hpc000401,15
Lancaster City Council,30UH,Northern Rail,Health & Housing,Use Of Public Tpt - Officers,06/06/2016,bpc004159,8.9
Lancaster City Council,30UH,Northern Rail,Environmental Services,Use Of Public Tpt - Officers,13/04/2016,33157,8.9
Lancaster City Council,30UH,Northern Rail,Regeneration and Planning,Use Of Public Tpt - Officers,20/05/2016,npc001228,5.9
Lancaster City Council,30UH,Northern Rail,Health & Housing,Use Of Public Tpt - Officers,06/06/2016,spc001664,9.9
Lancaster City Council,30UH,Northwood,Health & Housing,Homelessness Priority Need Order,13/04/2016,spc001550,206
Lancaster City Council,30UH,NOVOTEL,Resources,Service Training Budget,07/04/2016,jpc000706,89.17
Lancaster City Council,30UH,Ofcom,Resources,Equipment and Tools - General,23/06/2016,ppc000520,75
Lancaster City Council,30UH,Office Coffee Co,Resources,Catering Provisions,03/05/2016,ppc000485,237.66
Lancaster City Council,30UH,Office Depot,Environmental Services,Printing & Stationery,29/04/2016,33360,191.89
Lancaster City Council,30UH,One Stop Plastics,Environmental Services,R & M - Buildings (Within Service),01/06/2016,33824,945
Lancaster City Council,30UH,Over Board,Regeneration and Planning,Equipment and Tools - General,19/05/2016,npc001219,40.78
Lancaster City Council,30UH,Ovo Energy,Environmental Services,Capital Payments To Contractors,22/04/2016,33231,325.93
Lancaster City Council,30UH,P&D Supplies,Regeneration and Planning,Equipment and Tools - General,08/06/2016,npc001260,60.74
Lancaster City Council,30UH,Parkinson Property,Health & Housing,Homelessness Priority Need Order,09/06/2016,spc001666,309
Lancaster City Council,30UH,Parkway Hotel,Health & Housing,Service Training Budget,28/06/2016,bpc004225,680
Lancaster City Council,30UH,Pay360,Regeneration and Planning,Services - General,12/04/2016,33343,0.73
Lancaster City Council,30UH,Pay360,Regeneration and Planning,Software Purchase\Licences,12/04/2016,33343,10
Lancaster City Council,30UH,PayPal neerajgulat,Health & Housing,Printing & Stationery,27/06/2016,bpc004219,6.49
Lancaster City Council,30UH,Paypoint360,Regeneration and Planning,Services - General,06/06/2016,33887,13.67
Lancaster City Council,30UH,Paypoint360,Regeneration and Planning,Software Purchase\Licences,06/06/2016,33887,10
Lancaster City Council,30UH,PC Buy it,Resources,Equipment and Tools - General,05/04/2016,jpc000695,100
Lancaster City Council,30UH,PC Buy IT,Resources,Service Training Budget,05/04/2016,jpc000696,200
Lancaster City Council,30UH,Pedder street news,Health & Housing,Home Improvement Works,30/06/2016,spc001689,49.5
Lancaster City Council,30UH,Pen & Sword,Regeneration and Planning,Materials For Resale,06/06/2016,33883,77.92
Lancaster City Council,30UH,Pennine Instrument Services,Health & Housing,Equipment and Tools - General,28/04/2016,spc001577,215
Lancaster City Council,30UH,Peregrine Livefoods Ltd,Environmental Services,Materials - General,01/06/2016,33843,6.88
Lancaster City Council,30UH,Peregrine Livefoods Ltd,Environmental Services,Equipment and Tools - General,19/05/2016,33665,15.88
Lancaster City Council,30UH,Peregrine Livefoods Ltd,Environmental Services,Materials - General,29/04/2016,33362,16.3
Lancaster City Council,30UH,Peregrine Livefoods Ltd,Environmental Services,Materials - General,29/04/2016,33363,31.14
Lancaster City Council,30UH,Peregrine Livefoods Ltd,Environmental Services,Materials - General,29/04/2016,33364,38.83
Lancaster City Council,30UH,Peregrine Livefoods Ltd,Environmental Services,Materials - General,29/04/2016,33365,9.98
Lancaster City Council,30UH,Peregrine Livefoods Ltd,Environmental Services,Materials - General,03/05/2016,33396,60.67
Lancaster City Council,30UH,Peregrine Livefoods Ltd,Environmental Services,Materials - General,19/05/2016,33665,40.35
Lancaster City Council,30UH,Peregrine Luvefoods Ltd,Environmental Services,Equipment and Tools - General,29/04/2016,33366,29.72
Lancaster City Council,30UH,Pets at Home,Health & Housing,Equipment and Tools - General,06/04/2016,spc001542,16
Lancaster City Council,30UH,Pets at Home,Health & Housing,Equipment and Tools - General,25/04/2016,spc001569,21
Lancaster City Council,30UH,Physical Company,Health & Housing,Equipment and Tools - General,16/05/2016,bpc004103,1063.8
Lancaster City Council,30UH,Physical Company,Health & Housing,Equipment and Tools - General,10/06/2016,bpc004172,140.95
Lancaster City Council,30UH,Planglow,Health & Housing,Equipment and Tools - General,10/05/2016,bpc004091,61
Lancaster City Council,30UH,Pleasure Beach,Health & Housing,Services - General,21/04/2016,bpc004025,120.83
Lancaster City Council,30UH,Pointer,Resources,Infrastructure - Update & Maintenance,27/05/2016,jpc000759,139.52
Lancaster City Council,30UH,Post Office,Health & Housing,Equipment and Tools - General,31/05/2016,spc001657,6.4
Lancaster City Council,30UH,Post office,Regeneration and Planning,Printing & Stationery,10/05/2016,npc001205,24.82
Lancaster City Council,30UH,Post Office,Environmental Services,Printing & Stationery,09/06/2016,33942,27.48
Lancaster City Council,30UH,Post Office,Health & Housing,Services - General,19/04/2016,spc001559,11
Lancaster City Council,30UH,Post Office,Health & Housing,Services - General,20/04/2016,spc001561,1.52
Lancaster City Council,30UH,Post Office,Health & Housing,Printing & Stationery,25/05/2016,bpc004125,1.74
Lancaster City Council,30UH,Post Office,Environmental Services,Printing & Stationery,07/04/2016,33112,21.96
Lancaster City Council,30UH,Post Office,Regeneration and Planning,Printing & Stationery,24/05/2016,npc001233,15.3
Lancaster City Council,30UH,Post Office,Resources,Use Of Public Tpt - Officers,27/04/2016,jpc000718,3.95
Lancaster City Council,30UH,Post Office,Health & Housing,Equipment and Tools - General,01/04/2016,spc001529,14
Lancaster City Council,30UH,Postapes,Regeneration and Planning,Services - General,14/04/2016,npc001173,7
Lancaster City Council,30UH,Poundland LTD,Health & Housing,Equipment and Tools - General,28/05/2016,bpc004135,15.05
Lancaster City Council,30UH,PPL ,Environmental Services,Entertainment Fees,26/04/2016,33271,676.82
Lancaster City Council,30UH,PRINTING PLUS,Environmental Services,Materials - General,13/05/2016,33570,144.31
Lancaster City Council,30UH,printing.com,Governance,Corporate Training Budget,23/06/2016,lpc000387,285
Lancaster City Council,30UH,Prolog Print Media,Resources,Office Equipment,01/04/2016,fpc000167,1545
Lancaster City Council,30UH,Protec Supplies,Health & Housing,Clothing & Uniforms,10/05/2016,spc001601,46.62
Lancaster City Council,30UH,PRS for Music,Environmental Services,Entertainment Fees,27/04/2016,33279,899.4
Lancaster City Council,30UH,Purple Property Group,Health & Housing,Homelessness Priority Need Order,28/04/2016,spc001579,145.92
Lancaster City Council,30UH,Pye Motors Ltd,Health & Housing,Tenants Participation,13/04/2016,hpc000370,66.67
Lancaster City Council,30UH,Pye Motors Ltd,Health & Housing,Service Training Budget,27/06/2016,bpc004216,270
Lancaster City Council,30UH,Quay Traders Ltd,Regeneration and Planning,Materials For Resale,01/06/2016,33848,235.47
Lancaster City Council,30UH,Rainbow Designs Ltd,Environmental Services,Materials For Resale,27/04/2016,33306,73.6
Lancaster City Council,30UH,Rainbow Designs Ltd,Environmental Services,Materials For Resale,19/05/2016,33655,66
Lancaster City Council,30UH,Rainbow Slush,Environmental Services,Materials For Resale,15/04/2016,33179,290
Lancaster City Council,30UH,Rainbow Slush,Environmental Services,Materials For Resale,01/06/2016,33840,396.66
Lancaster City Council,30UH,Rainbow Slush,Environmental Services,Materials For Resale,15/06/2016,33979,409.5
Lancaster City Council,30UH,Reel Cinema,Health & Housing,Services - General,19/04/2016,bpc004016,43.29
Lancaster City Council,30UH,Reel Cinema,Health & Housing,Services - General,05/04/2016,bpc004006,82.5
Lancaster City Council,30UH,Rexel,Environmental Services,Materials - General,07/04/2016,33120,23
Lancaster City Council,30UH,Rexel,Environmental Services,Materials - General,01/06/2016,33823,38
Lancaster City Council,30UH,Ryman Stationery,Resources,Equipment and Tools - General,01/04/2016,ppc000463,14.97
Lancaster City Council,30UH,RJB Stone Ltd,Environmental Services,Materials For Resale,19/05/2016,33649,344.4
Lancaster City Council,30UH,RLSS,Health & Housing,Equipment and Tools - General,01/06/2016,bpc004147,129.29
Lancaster City Council,30UH,RLSS Direct,Health & Housing,Service Training Budget,27/06/2016,bpc004212,85
Lancaster City Council,30UH,RLSS Direct,Health & Housing,Service Training Budget,28/06/2016,bpc004226,25.5
Lancaster City Council,30UH,robinson flowers,Health & Housing,Equipment and Tools - General,04/04/2016,bpc004003,20
Lancaster City Council,30UH,Royal Mail,Regeneration and Planning,Materials For Resale,12/04/2016,33134,226.28
Lancaster City Council,30UH,Royal Mail,Regeneration and Planning,Materials For Resale,09/06/2016,33935,500
Lancaster City Council,30UH,Ryman Stationery,Resources,R & M - Buildings,14/04/2016,ppc000472,31.59
Lancaster City Council,30UH,Ryman Stationery,Resources,Office Equipment,16/06/2016,ppc000514,25
Lancaster City Council,30UH,Ryman Stationery,Resources,R & M - Buildings,27/06/2016,ppc000525,8.33
Lancaster City Council,30UH,Ryman Stationery,Resources,R & M - Buildings,11/05/2016,ppc000489,9.97
Lancaster City Council,30UH,Ryman Stationery ,Resources,Office Equipment,08/06/2016,ppc000508,22.45
Lancaster City Council,30UH,Ryman Stationery ,Resources,Printing & Stationery,15/04/2016,ppc000474,7.49
Lancaster City Council,30UH,Ryman Stationery ,Health & Housing,Service Training Budget,26/05/2016,hpc000393,25.82
Lancaster City Council,30UH,Sack Trucks Direct,Governance,Office Equipment,29/04/2016,dpc000388,49.92
Lancaster City Council,30UH,Safescan,Regeneration and Planning,Equipment and Tools - General,20/06/2016,npc001269,134.9
Lancaster City Council,30UH,Safety Letterbox Company,Resources,Fixtures & Fittings - General,01/06/2016,ppc000500,316
Lancaster City Council,30UH,Sainsbury`s,Resources,Catering Provisions,03/05/2016,ppc000482,9.35
Lancaster City Council,30UH,Sainsbury`s,Regeneration and Planning,Exhibitions,09/05/2016,33479,8
Lancaster City Council,30UH,sainsbury`s,Environmental Services,Materials For Resale,03/05/2016,33916,14.45
Lancaster City Council,30UH,sainsbury`s,Health & Housing,Equipment and Tools - General,11/04/2016,spc001546,4.5
Lancaster City Council,30UH,sainsbury`s,Health & Housing,Clothing & Uniforms,29/06/2016,bpc004228,10
Lancaster City Council,30UH,sainsbury`s,Resources,Materials For Resale,25/05/2016,ppc000497,5.04
Lancaster City Council,30UH,sainsbury`s,Resources,Catering Provisions,13/05/2016,ppc000493,14.2
Lancaster City Council,30UH,Salmon,Regeneration and Planning,Materials For Resale,12/04/2016,33135,231.28
Lancaster City Council,30UH,Salmon,Regeneration and Planning,Materials For Resale,06/06/2016,33882,97.32
Lancaster City Council,30UH,Screwfix,Health & Housing,Clothing & Uniforms,27/04/2016,spc001575,171.96
Lancaster City Council,30UH,Screwfix,Health & Housing,Equipment and Tools - General,30/04/2016,bpc004070,39.58
Lancaster City Council,30UH,Screwfix,Environmental Services,Equipment and Tools - General,27/04/2016,33318,115.83
Lancaster City Council,30UH,Screwfix,Environmental Services,Equipment and Tools - General,01/06/2016,33807,19.98
Lancaster City Council,30UH,Screwfix,Health & Housing,Equipment and Tools - General,26/05/2016,spc001648,40.65
Lancaster City Council,30UH,Screwfix,Environmental Services,Materials - General,27/04/2016,33319,63.32
Lancaster City Council,30UH,Screwfix,Environmental Services,Materials - General,01/06/2016,33816,64.99
Lancaster City Council,30UH,Screwfix,Environmental Services,Materials - General,06/05/2016,33469,3.55
Lancaster City Council,30UH,Screwfix,Health & Housing,Materials (Minor Adaptations),26/05/2016,spc001644,79.17
Lancaster City Council,30UH,Screwfix,Environmental Services,Equipment and Tools - General,19/05/2016,33663,150.16
Lancaster City Council,30UH,Seton,Environmental Services,Printing & Stationery,04/04/2016,33049,48.45
Lancaster City Council,30UH,Shaw & Sons Limited,Governance,Printing & Stationery,20/06/2016,dpc000411,19.25
Lancaster City Council,30UH,Shaw & Sons Limited,Governance,Printing & Stationery,18/04/2016,dpc000383,136.3
Lancaster City Council,30UH,Shaw & Sons Limited,Governance,Printing & Stationery,18/04/2016,dpc000384,136.3
Lancaster City Council,30UH,Shaw & Sons Limited,Governance,Printing & Stationery,03/06/2016,dpc000406,260
Lancaster City Council,30UH,Shelter,Health & Housing,Service Training Budget,01/04/2016,spc001524,300
Lancaster City Council,30UH,SHERRIFF GRASS CARE,Environmental Services,Materials - General,08/04/2016,33123,94.98
Lancaster City Council,30UH,Shopfitting Warehouse,Regeneration and Planning,Equipment and Tools - General,04/05/2016,npc001196,182
Lancaster City Council,30UH,SHP,Resources,Infrastructure - Update & Maintenance,27/04/2016,jpc000716,202.98
Lancaster City Council,30UH,SHP,Resources,Infrastructure - Update & Maintenance,27/05/2016,jpc000753,202.98
Lancaster City Council,30UH,Sign Holders,Regeneration and Planning,Services - General,14/04/2016,npc001174,90.75
Lancaster City Council,30UH,Signs Express,Health & Housing,Marketing,21/06/2016,bpc004185,196.96
Lancaster City Council,30UH,Signs Express,Regeneration and Planning,Marketing,23/05/2016,33699,399.9
Lancaster City Council,30UH,Signs Express,Regeneration and Planning,Printing & Stationery,25/04/2016,33246,202.88
Lancaster City Council,30UH,Signs Express,Environmental Services,Printing & Stationery,06/04/2016,33089,0.01
Lancaster City Council,30UH,Signs Express (Lancaster),Environmental Services,Marketing,22/05/2016,33694,150
Lancaster City Council,30UH,Signs Express (Lancaster),Environmental Services,Printing & Stationery,22/05/2016,33694,295.74
Lancaster City Council,30UH,Silver Tree,Governance,Long Service Awards,06/04/2016,dpc000379,146.65
Lancaster City Council,30UH,Simplysounds.org.uk,Health & Housing,Equipment and Tools - General,16/05/2016,bpc004101,24.96
Lancaster City Council,30UH,Slingsby PLC,Resources,Equipment and Tools - General,01/04/2016,ppc000465,575
Lancaster City Council,30UH,SMP Playgrounds Ltd t/a HAGS SMP,Environmental Services,Materials - General,11/05/2016,33532,1329
Lancaster City Council,30UH,SMP Playgrounds Ltd t/a HAGS SMP,Environmental Services,Materials - General,11/05/2016,33533,33.23
Lancaster City Council,30UH,Snap Frame Warehouse,Environmental Services,Office Equipment,07/06/2016,34179,115.58
Lancaster City Council,30UH,SOCITM,Resources,Service Training Budget,29/06/2016,jpc000804,112
Lancaster City Council,30UH,SOCITM,Resources,Service Training Budget,27/05/2016,jpc000746,112
Lancaster City Council,30UH,Softcat,Resources,Infrastructure - Update & Maintenance,05/04/2016,jpc000693,242.93
Lancaster City Council,30UH,Softcat,Resources,Infrastructure - Update & Maintenance,05/04/2016,jpc000694,1666.67
Lancaster City Council,30UH,Spar,Environmental Services,Materials For Resale,01/04/2016,32972,21.53
Lancaster City Council,30UH,Spar,Environmental Services,Materials For Resale,10/05/2016,33500,608.32
Lancaster City Council,30UH,Spar,Environmental Services,Materials For Resale,07/06/2016,33917,0.2
Lancaster City Council,30UH,Spar,Environmental Services,Materials For Resale,07/06/2016,33918,11.9
Lancaster City Council,30UH,Speights,Environmental Services,Materials - General,15/04/2016,33178,57.86
Lancaster City Council,30UH,Speights,Environmental Services,Materials For Resale,15/04/2016,33178,576.9
Lancaster City Council,30UH,Sports Direct,Health & Housing,Cleaning Materials,23/06/2016,bpc004199,74.14
Lancaster City Council,30UH,Sports Direct,Health & Housing,Clothing & Uniforms,29/05/2016,bpc004136,78.3
Lancaster City Council,30UH,Sports Direct,Health & Housing,Clothing & Uniforms,29/05/2016,bpc004138,93.29
Lancaster City Council,30UH,St Andrews First Aid,Governance,Corporate Training Budget,07/06/2016,lpc000383,24.95
Lancaster City Council,30UH,St Winifreds,Health & Housing,Services - Bed and Breakfast,04/04/2016,spc001535,60
Lancaster City Council,30UH,St Winifreds,Health & Housing,Services - Bed and Breakfast,05/04/2016,spc001536,150
Lancaster City Council,30UH,St Winifreds,Health & Housing,Services - Bed and Breakfast,05/04/2016,spc001539,150
Lancaster City Council,30UH,St Winifreds,Health & Housing,Services - Bed and Breakfast,05/04/2016,spc001540,30
Lancaster City Council,30UH,St Winifreds,Health & Housing,Services - Bed and Breakfast,05/04/2016,spc001541,30
Lancaster City Council,30UH,St Winifreds,Health & Housing,Services - Bed and Breakfast,12/04/2016,spc001549,570
Lancaster City Council,30UH,St Winifreds,Health & Housing,Services - Bed and Breakfast,20/04/2016,spc001563,30
Lancaster City Council,30UH,St Winifreds,Health & Housing,Services - Bed and Breakfast,01/04/2016,spc001523,60
Lancaster City Council,30UH,St Winifreds,Health & Housing,Services - Bed and Breakfast,01/04/2016,spc001530,240
Lancaster City Council,30UH,St Winifreds,Health & Housing,Services - Bed and Breakfast,06/04/2016,spc001543,180
Lancaster City Council,30UH,St Winifreds,Health & Housing,Services - Bed and Breakfast,13/04/2016,spc001551,150
Lancaster City Council,30UH,St Winifreds,Health & Housing,Services - Bed and Breakfast,14/04/2016,spc001554,630
Lancaster City Council,30UH,St Winifreds,Health & Housing,Services - Bed and Breakfast,18/04/2016,spc001555,270
Lancaster City Council,30UH,St Winifreds,Health & Housing,Services - Bed and Breakfast,20/04/2016,spc001564,390
Lancaster City Council,30UH,St Winifreds,Health & Housing,Services - Bed and Breakfast,21/04/2016,spc001567,940
Lancaster City Council,30UH,St Winifreds,Health & Housing,Services - Bed and Breakfast,27/04/2016,spc001571,150
Lancaster City Council,30UH,St Winifreds,Health & Housing,Services - Bed and Breakfast,27/04/2016,spc001573,300
Lancaster City Council,30UH,St Winifreds,Health & Housing,Services - Bed and Breakfast,28/04/2016,spc001580,600
Lancaster City Council,30UH,St Winifreds,Health & Housing,Services - Bed and Breakfast,12/05/2016,spc001613,270
Lancaster City Council,30UH,St Winifreds,Health & Housing,Services - Bed and Breakfast,25/05/2016,spc001640,210
Lancaster City Council,30UH,St Winifreds,Health & Housing,Services - Bed and Breakfast,01/06/2016,spc001658,270
Lancaster City Council,30UH,St Winifreds,Health & Housing,Services - Bed and Breakfast,08/06/2016,spc001665,570
Lancaster City Council,30UH,St Winifreds,Health & Housing,Services - Bed and Breakfast,10/06/2016,spc001667,150
Lancaster City Council,30UH,St Winifreds,Health & Housing,Services - Bed and Breakfast,15/06/2016,spc001670,90
Lancaster City Council,30UH,St Winifreds,Health & Housing,Services - Bed and Breakfast,30/06/2016,spc001688,420
Lancaster City Council,30UH,STA,Health & Housing,Materials For Resale,20/06/2016,bpc004174,14
Lancaster City Council,30UH,STA,Health & Housing,Materials For Resale,20/06/2016,bpc004179,10.8
Lancaster City Council,30UH,STA,Health & Housing,Service Training Budget,01/04/2016,bpc003994,234.99
Lancaster City Council,30UH,STA,Health & Housing,Service Training Budget,20/06/2016,bpc004178,37
Lancaster City Council,30UH,STA,Health & Housing,Service Training Budget,22/06/2016,bpc004189,100
Lancaster City Council,30UH,STA,Health & Housing,Service Training Budget,27/06/2016,bpc004221,100
Lancaster City Council,30UH,STA ,Health & Housing,Service Training Budget,22/04/2016,bpc004027,47
Lancaster City Council,30UH,STA ,Health & Housing,Service Training Budget,01/06/2016,bpc004143,300
Lancaster City Council,30UH,Stagecoach,Regeneration and Planning,Stagecoach Tickets,11/04/2016,33133,2989.2
Lancaster City Council,30UH,Stagecoach,Regeneration and Planning,Stagecoach Tickets,19/05/2016,33671,13336.72
Lancaster City Council,30UH,Stagecoach,Regeneration and Planning,Stagecoach Tickets,09/06/2016,33937,8646.12
Lancaster City Council,30UH,Station Garage Arnside,Regeneration and Planning,Petrol & Derv,22/06/2016,npc001273,57.87
Lancaster City Council,30UH,Station Garage Arnside,Regeneration and Planning,Petrol & Derv,10/05/2016,npc001204,55.42
Lancaster City Council,30UH,Fayre and Square,Regeneration and Planning,Catering Provisions,02/06/2016,npc001247,50.67
Lancaster City Council,30UH,Fayre and Square,Regeneration and Planning,Exhibitions & Events - Expenses,09/04/2016,npc001162,36.05
Lancaster City Council,30UH,Steam Packet Holidays Ltd,Regeneration and Planning,Sea-Cat Sales,04/05/2016,33426,217.72
Lancaster City Council,30UH,Steam Packet Holidays Ltd,Regeneration and Planning,Sea-Cat Sales,04/05/2016,33425,321.56
Lancaster City Council,30UH,Stirk House Hotel ,Regeneration and Planning,Service Training Budget,13/05/2016,npc001211,54.17
Lancaster City Council,30UH,Super Bowl,Health & Housing,Services - General,04/04/2016,bpc004004,116.67
Lancaster City Council,30UH,Super Bowl ,Health & Housing,Services - General,04/04/2016,bpc004005,175
Lancaster City Council,30UH,Talbot Fashions LLP,Environmental Services,Materials For Resale,19/05/2016,33657,218.52
Lancaster City Council,30UH,TARGET LOCKS,Health & Housing,Printing & Stationery,03/06/2016,hpc000399,12.28
Lancaster City Council,30UH,Text marketer,Governance,Printing & Stationery,28/06/2016,dpc000414,33
Lancaster City Council,30UH,THAWTE,Resources,Infrastructure - Update & Maintenance,07/04/2016,jpc000702,249.36
Lancaster City Council,30UH,The Chartered Institute Of Env. Health,Health & Housing,Service Training Budget,01/04/2016,spc001526,179
Lancaster City Council,30UH,The Chartered Institute Of Env. Health,Health & Housing,Service Training Budget,01/04/2016,spc001527,129
Lancaster City Council,30UH,The Chartered Institute Of Env. Health,Health & Housing,Service Training Budget,01/04/2016,spc001531,89
Lancaster City Council,30UH,The Chartered Institute Of Env. Health,Health & Housing,Service Training Budget,12/04/2016,spc001547,279
Lancaster City Council,30UH,The Chartered Institute Of Env. Health,Health & Housing,Service Training Budget,21/04/2016,spc001566,458
Lancaster City Council,30UH,The Chartered Institute Of Env. Health,Health & Housing,Service Training Budget,11/05/2016,spc001604,330
Lancaster City Council,30UH,The Decal Co Ltd Eurostick,Regeneration and Planning,Materials For Resale,18/05/2016,33644,221.25
Lancaster City Council,30UH,The Decal Co Ltd Eurostick,Regeneration and Planning,Materials For Resale,09/06/2016,33936,187.5
Lancaster City Council,30UH,The Display Centre,Regeneration and Planning,Services - General,14/04/2016,npc001175,65.2
Lancaster City Council,30UH,The Laptop Power Supply Shop,Resources,Infrastructure - Update & Maintenance,05/04/2016,jpc000689,29.16
Lancaster City Council,30UH,The Market Cobbler,Governance,Civic Receptions & Mayoral Functions,17/05/2016,dpc000394,30
Lancaster City Council,30UH,The Market Cobbler,Environmental Services,Equipment and Tools - General,07/06/2016,34177,10
Lancaster City Council,30UH,The Market Cobbler,Resources,Equipment and Tools - General,28/04/2016,ppc000479,5
Lancaster City Council,30UH,The Market Cobbler,Resources,R & M - Buildings,08/06/2016,ppc000507,10
Lancaster City Council,30UH,The Post Office,Health & Housing,Services - General,09/05/2016,spc001593,0.64
Lancaster City Council,30UH,The Post Office,Health & Housing,Services - General,03/06/2016,spc001662,1.5
Lancaster City Council,30UH,The RADAR Key Company,Resources,Materials For Resale,01/06/2016,rpc000090,552
Lancaster City Council,30UH,Fayre and Square,Regeneration and Planning,Catering Provisions,02/06/2016,npc001243,51.17
Lancaster City Council,30UH,The Uniform & Leisurewear Company Ltd,Health & Housing,Clothing & Uniforms,05/05/2016,spc001591,269.97
Lancaster City Council,30UH,The Uniform & Leisurewear Company Ltd,Health & Housing,Clothing & Uniforms,05/05/2016,spc001592,415
Lancaster City Council,30UH,The Uniform & Leisurewear Company Ltd,Health & Housing,Clothing & Uniforms,13/06/2016,spc001710,17.9
Lancaster City Council,30UH,The White Hart,Regeneration and Planning,Management Plan Projects,22/06/2016,npc001274,100.21
Lancaster City Council,30UH,The Works,Health & Housing,Equipment and Tools - General,25/04/2016,spc001568,4.5
Lancaster City Council,30UH,The Works,Health & Housing,Equipment and Tools - General,16/05/2016,spc001617,13.5
Lancaster City Council,30UH,Theatre Tokens,Regeneration and Planning,Concerts - General,06/06/2016,34047,47
Lancaster City Council,30UH,Thomas Graham,Environmental Services,Clothing & Uniforms,21/06/2016,34028,118
Lancaster City Council,30UH,Thomas Graham,Regeneration and Planning,Clothing & Uniforms,09/06/2016,npc001262,21.25
Lancaster City Council,30UH,Thomas Graham,Environmental Services,Equipment and Tools - General,03/05/2016,33390,48
Lancaster City Council,30UH,Thomas Graham,Health & Housing,Equipment and Tools - General,13/04/2016,spc001552,32.63
Lancaster City Council,30UH,Thomas Graham,Health & Housing,Equipment and Tools - General,11/05/2016,spc001609,3.7
Lancaster City Council,30UH,Thomas Graham,Health & Housing,Equipment and Tools - General,20/05/2016,spc001632,18.07
Lancaster City Council,30UH,Thomas Graham,Health & Housing,Equipment and Tools - General,20/06/2016,spc001675,49.46
Lancaster City Council,30UH,Thomas Graham,Health & Housing,Equipment and Tools - General,30/06/2016,spc001690,79.2
Lancaster City Council,30UH,Thomas Graham,Environmental Services,Materials - General,27/04/2016,33387,25.18
Lancaster City Council,30UH,Thomas Graham,Environmental Services,Materials - General,03/05/2016,33388,127.68
Lancaster City Council,30UH,Thomas Graham,Environmental Services,Materials - General,03/05/2016,33389,35.23
Lancaster City Council,30UH,Thomas Graham,Environmental Services,Materials - General,03/05/2016,33408,32.29
Lancaster City Council,30UH,Thomas Graham,Environmental Services,Materials - General,26/05/2016,33733,146.34
Lancaster City Council,30UH,Thomas Graham,Environmental Services,Materials - General,01/06/2016,33821,89.7
Lancaster City Council,30UH,Thomas Graham,Environmental Services,Materials - General,01/06/2016,33841,10.84
Lancaster City Council,30UH,Thomas Graham,Health & Housing,Materials - General,19/05/2016,spc001628,-6.44
Lancaster City Council,30UH,Thomas Graham,Health & Housing,Materials - General,02/06/2016,spc001660,-6.45
Lancaster City Council,30UH,Thomas Graham,Health & Housing,Materials - General,20/06/2016,spc001673,6.44
Lancaster City Council,30UH,Thomas Graham,Health & Housing,Materials - General,20/06/2016,spc001674,2.05
Lancaster City Council,30UH,Thomas Graham,Health & Housing,Materials (Minor Adaptations),13/04/2016,spc001553,41.89
Lancaster City Council,30UH,Thomas Graham,Health & Housing,Materials (Minor Adaptations),11/05/2016,spc001605,44.36
Lancaster City Council,30UH,Thomas Graham,Health & Housing,Materials (Minor Adaptations),11/05/2016,spc001606,10.08
Lancaster City Council,30UH,Thomas Graham,Health & Housing,Materials (Minor Adaptations),11/05/2016,spc001607,20.31
Lancaster City Council,30UH,Thomas Graham,Health & Housing,Materials (Minor Adaptations),11/05/2016,spc001608,35.75
Lancaster City Council,30UH,Thomas Graham,Health & Housing,Materials (Minor Adaptations),11/05/2016,spc001610,18.28
Lancaster City Council,30UH,Thomas Graham,Health & Housing,Materials (Minor Adaptations),11/05/2016,spc001612,3.8
Lancaster City Council,30UH,Thomas Graham,Health & Housing,Materials (Minor Adaptations),20/05/2016,spc001630,36.75
Lancaster City Council,30UH,Thomas Graham,Health & Housing,Materials (Minor Adaptations),20/05/2016,spc001631,24.23
Lancaster City Council,30UH,Thomas Graham,Health & Housing,Sanctuary Scheme,11/05/2016,spc001611,10.71
Lancaster City Council,30UH,Thomas Graham,Health & Housing,Materials - General,04/04/2016,spc001534,0.1
Lancaster City Council,30UH,Thomas Telford,Regeneration and Planning,Subscriptions,29/06/2016,npc001283,365
Lancaster City Council,30UH,Thos Graham,Regeneration and Planning,Equipment and Tools - General,05/04/2016,npc001152,107.99
Lancaster City Council,30UH,Thos Graham,Regeneration and Planning,Equipment and Tools - General,09/05/2016,npc001200,4.79
Lancaster City Council,30UH,Thos Graham,Regeneration and Planning,Equipment and Tools - General,09/05/2016,npc001201,37.19
Lancaster City Council,30UH,Thos Graham,Regeneration and Planning,Equipment and Tools - General,09/05/2016,npc001199,61.2
Lancaster City Council,30UH,Till Roll King,Resources,Office Equipment,21/04/2016,rpc000086,12.38
Lancaster City Council,30UH,Timpson Ltd,Regeneration and Planning,R & M - Buildings,07/06/2016,npc001256,18
Lancaster City Council,30UH,Timpson Ltd,Resources,Equipment and Tools - General,23/06/2016,ppc000518,6.25
Lancaster City Council,30UH,Timpson Ltd,Resources,R & M - Buildings,01/06/2016,ppc000499,27.08
Lancaster City Council,30UH,Timpson Ltd,Resources,Office Equipment,20/04/2016,ppc000477,16.67
Lancaster City Council,30UH,Timpson Ltd,Governance,Printing & Stationery,24/05/2016,lpc000380,10.95
Lancaster City Council,30UH,Toll House,Governance,Services - Consultants,05/04/2016,lpc000371,249.62
Lancaster City Council,30UH,Tool Station,Health & Housing,Materials - General,28/06/2016,spc001684,112.5
Lancaster City Council,30UH,Tool Station,Health & Housing,Materials (Minor Adaptations),16/05/2016,spc001615,112.5
Lancaster City Council,30UH,Toolden Limited,Health & Housing,Grave Excavation,27/05/2016,spc001652,75
Lancaster City Council,30UH,Total Sounds,Health & Housing,Equipment and Tools - General,30/04/2016,bpc004074,165.83
Lancaster City Council,30UH,Total Sounds,Health & Housing,Equipment and Tools - General,18/05/2016,bpc004117,157.5
Lancaster City Council,30UH,TP Express,Regeneration and Planning,Use Of Public Tpt - Officers,11/04/2016,npc001164,17.5
Lancaster City Council,30UH,Tracks 2000,Health & Housing,Equipment and Tools - General,28/04/2016,bpc004056,4195
Lancaster City Council,30UH,Trad Scanners,Resources,Miscellaneous Expenditure,15/04/2016,jpc000714,762
Lancaster City Council,30UH,Trainline,Governance,Service Training Budget,04/04/2016,dpc000377,20.15
Lancaster City Council,30UH,Trainline,Health & Housing,Children & Young People,05/04/2016,hpc000368,9.84
Lancaster City Council,30UH,Trainline,Health & Housing,Service Training Budget,27/04/2016,spc001572,15.66
Lancaster City Council,30UH,Trainline,Health & Housing,Service Training Budget,17/05/2016,spc001621,24.23
Lancaster City Council,30UH,Trainline,Health & Housing,Service Training Budget,06/05/2016,hpc000387,188.19
Lancaster City Council,30UH,Trainline,Health & Housing,Service Training Budget,06/05/2016,hpc000388,-144.17
Lancaster City Council,30UH,Trainline,Governance,Use Of Public Tpt - Officers,18/04/2016,dpc000382,9.84
Lancaster City Council,30UH,Transpennine Express,Resources,Use Of Public Tpt - Officers,29/06/2016,jpc000800,8.6
Lancaster City Council,30UH,Travelodge,Health & Housing,Service Training Budget,06/05/2016,hpc000392,-213.9
Lancaster City Council,30UH,Travelodge,Health & Housing,Service Training Budget,06/05/2016,hpc000390,215.9
Lancaster City Council,30UH,Travellers Choice,Health & Housing,Tpt & Plant - Casual Hire,27/04/2016,bpc004052,790
Lancaster City Council,30UH,Travelodge,Health & Housing,Service Training Budget,01/06/2016,bpc004142,108
Lancaster City Council,30UH,Travelodge,Resources,Service Training Budget,07/04/2016,jpc000705,80.79
Lancaster City Council,30UH,Travelodge,Resources,Use Of Public Tpt - Officers,05/04/2016,jpc000692,165
Lancaster City Council,30UH,Travis Perkins,Environmental Services,Grounds Maintenance - Other,01/06/2016,33844,7.9
Lancaster City Council,30UH,Travis Perkins,Environmental Services,Materials - General,07/04/2016,33115,60
Lancaster City Council,30UH,Travis Perkins,Environmental Services,Materials - General,27/04/2016,33315,87.64
Lancaster City Council,30UH,Travis Perkins,Environmental Services,Materials - General,01/06/2016,33815,96.36
Lancaster City Council,30UH,Travis Perkins,Health & Housing,Materials (Minor Adaptations),26/05/2016,spc001646,24.31
Lancaster City Council,30UH,Travis Perkins,Environmental Services,R & M - Buildings,19/05/2016,33650,32.95
Lancaster City Council,30UH,Travis Perkins,Regeneration and Planning,Management Plan Projects,23/05/2016,npc001231,84.86
Lancaster City Council,30UH,Trespass,Governance,Civic Receptions & Mayoral Functions,17/05/2016,dpc000393,6.24
Lancaster City Council,30UH,Trust Medical,Governance,Corporate Training Budget,05/04/2016,lpc000370,75.25
Lancaster City Council,30UH,TSA,Health & Housing,Service Training Budget,24/06/2016,bpc004206,17.4
Lancaster City Council,30UH,TSA ,Health & Housing,Service Training Budget,24/06/2016,bpc004205,17.05
Lancaster City Council,30UH,TV Cables,Resources,Infrastructure - Update & Maintenance,27/05/2016,jpc000747,94.98
Lancaster City Council,30UH,TV Licensing,Resources,Miscellaneous Licences,12/05/2016,ppc000490,145.5
Lancaster City Council,30UH,Udales,Health & Housing,Materials For Resale,24/05/2016,bpc004124,25.95
Lancaster City Council,30UH,UK Paper Rolls,Regeneration and Planning,Office Equipment,14/04/2016,33164,27
Lancaster City Council,30UH,UK Paper Rolls,Regeneration and Planning,Printing & Stationery,06/06/2016,33886,27
Lancaster City Council,30UH,UKpaperrolls.com,Health & Housing,Printing & Stationery,28/04/2016,bpc004053,196.45
Lancaster City Council,30UH,Uniform Leisure Wear,Health & Housing,Clothing & Uniforms,01/06/2016,bpc004146,373.96
Lancaster City Council,30UH,Unisto,Environmental Services,Equipment and Tools - General,14/05/2016,33580,87.5
Lancaster City Council,30UH,United Utilities,Health & Housing,Water Services,28/04/2016,bpc004057,124.91
Lancaster City Council,30UH,United Utilities,Environmental Services,Capital Payments To Contractors,19/05/2016,33667,622
Lancaster City Council,30UH,United Utilities,Health & Housing,Water Services,25/05/2016,bpc004130,138.96
Lancaster City Council,30UH,United Utilities,Health & Housing,Water Services,30/06/2016,bpc004229,110.86
Lancaster City Council,30UH,United Utilities,Environmental Services,Water Services,07/04/2016,33114,156.45
Lancaster City Council,30UH,United Utilities,Regeneration and Planning,Water Services,12/04/2016,npc001169,129.48
Lancaster City Council,30UH,Univeral Mail,Regeneration and Planning,Materials For Resale,06/06/2016,33889,95
Lancaster City Council,30UH,UPS,Regeneration and Planning,Marketing & Promotion,04/05/2016,33427,2
Lancaster City Council,30UH,V Catlow & Son Ltd,Health & Housing,Equipment and Tools - General,06/06/2016,bpc004152,171.43
Lancaster City Council,30UH,Veterinary Health Centre,Environmental Services,Services - Vets,27/04/2016,33298,615.23
Lancaster City Council,30UH,Virgin Trains,Health & Housing,Service Training Budget,27/05/2016,spc001653,192.75
Lancaster City Council,30UH,Viking,Regeneration and Planning,Office Equipment,14/04/2016,33163,80.98
Lancaster City Council,30UH,Viking,Environmental Services,Office Equipment,07/06/2016,33910,609.98
Lancaster City Council,30UH,Viking,Regeneration and Planning,Printing & Stationery,14/04/2016,33163,156.91
Lancaster City Council,30UH,Viking Direct,Health & Housing,Equipment and Tools - General,19/05/2016,spc001629,20.89
Lancaster City Council,30UH,Virgin Trains,Resources,Use Of Public Tpt - Officers,11/05/2016,fpc000174,67.5
Lancaster City Council,30UH,Virgin Trains,Resources,Use Of Public Tpt - Officers,11/05/2016,fpc000172,48.8
Lancaster City Council,30UH,Virgin Trains,Resources,Use Of Public Tpt - Officers,11/05/2016,fpc000173,24.9
Lancaster City Council,30UH,Virgin Trains,Resources,Use Of Public Tpt - Officers,05/04/2016,jpc000688,104.4
Lancaster City Council,30UH,Virgin Trains,Resources,Use Of Public Tpt - Officers,05/04/2016,jpc000690,31.3
Lancaster City Council,30UH,Virgin Trains,Resources,Use Of Public Tpt - Officers,05/04/2016,jpc000691,83.75
Lancaster City Council,30UH,Virgin Trains,Resources,Use Of Public Tpt - Officers,27/04/2016,jpc000717,71.7
Lancaster City Council,30UH,Virgin Trains,Resources,Use Of Public Tpt - Officers,27/04/2016,jpc000720,83.75
Lancaster City Council,30UH,Virgin Trains,Resources,Use Of Public Tpt - Officers,27/05/2016,jpc000743,164.8
Lancaster City Council,30UH,Virgin Trains,Resources,Use Of Public Tpt - Officers,29/06/2016,jpc000799,63.8
Lancaster City Council,30UH,Virgin Trains,Resources,Use Of Public Tpt - Officers,29/06/2016,jpc000801,16.9
Lancaster City Council,30UH,Virgin Trains,Resources,Use Of Public Tpt - Officers,29/06/2016,jpc000802,177.4
Lancaster City Council,30UH,Virgin Trains,Governance,Car Allowances - Officers,13/04/2016,dpc000380,202.75
Lancaster City Council,30UH,Virgin Trains,Governance,Civic Receptions & Mayoral Functions,17/05/2016,dpc000395,183
Lancaster City Council,30UH,Virgin Trains,Health & Housing,Equipment and Tools - General,17/06/2016,spc001672,103.6
Lancaster City Council,30UH,Virgin Trains,Health & Housing,Materials - General,25/05/2016,spc001641,29.9
Lancaster City Council,30UH,Virgin Trains,Governance,Members Expenses - Travel,10/06/2016,dpc000407,92.5
Lancaster City Council,30UH,Virgin Trains,Governance,Members Expenses - Travel,30/06/2016,dpc000418,47.8
Lancaster City Council,30UH,Virgin Trains,Health & Housing,Service Training Budget,27/06/2016,bpc004215,223.4
Lancaster City Council,30UH,Virgin Trains,Governance,Service Training Budget,01/06/2016,dpc000405,8.9
Lancaster City Council,30UH,Virgin Trains,Governance,Service Training Budget,13/06/2016,dpc000408,21.3
Lancaster City Council,30UH,Virgin Trains,Governance,Service Training Budget,27/05/2016,lpc000381,20.6
Lancaster City Council,30UH,Virgin Trains,Resources,Use Of Public Tpt - Officers,01/06/2016,fpc000181,23.9
Lancaster City Council,30UH,Virgin Trains,Resources,Use Of Public Tpt - Officers,01/06/2016,fpc000180,135.85
Lancaster City Council,30UH,Virgin Trains,Resources,Use Of Public Tpt - Officers,08/06/2016,fpc000182,92.4
Lancaster City Council,30UH,Virgin Trains,Resources,Use Of Public Tpt - Officers,20/06/2016,fpc000185,18.8
Lancaster City Council,30UH,Virgin Trains,Health & Housing,Use Of Public Tpt - Officers,23/06/2016,spc001676,247.5
Lancaster City Council,30UH,Virgin Trains,Regeneration and Planning,Use Of Public Tpt - Officers,06/04/2016,npc001154,169.75
Lancaster City Council,30UH,Virgin Trains,Regeneration and Planning,Use Of Public Tpt - Officers,10/06/2016,npc001265,62.25
Lancaster City Council,30UH,Virgin Trains,Resources,Use Of Public Tpt - Officers,20/05/2016,rpc000089,17.5
Lancaster City Council,30UH,Virgin Trains,Health & Housing,Use Of Public Tpt - Officers,27/06/2016,bpc004220,112.85
Lancaster City Council,30UH,W H Smith,Management Team,Books & Periodicals,18/04/2016,mpc000053,11.99
Lancaster City Council,30UH,W H Smith,Management Team,Printing & Stationery,04/05/2016,mpc000054,5.82
Lancaster City Council,30UH,W H Smith,Resources,Office Equipment,17/05/2016,rpc000088,3.32
Lancaster City Council,30UH,Waterstones,Resources,Infrastructure - Update & Maintenance,16/06/2016,jpc000784,28.32
Lancaster City Council,30UH,Waterstones,Regeneration and Planning,Printing & Stationery,25/04/2016,33240,9.99
Lancaster City Council,30UH,West Coast Trains,Health & Housing,Use Of Public Tpt - Officers,06/06/2016,bpc004160,66.5
Lancaster City Council,30UH,West Coast Trains,Health & Housing,Use Of Public Tpt - Officers,06/06/2016,bpc004161,11.1
Lancaster City Council,30UH,Wetherspoon,Health & Housing,Service Training Budget,24/06/2016,bpc004204,12.72
Lancaster City Council,30UH,Whittakers Embroidery,Health & Housing,Clothing & Uniforms,16/05/2016,bpc004109,140.7
Lancaster City Council,30UH,Whittakers Embroidery,Health & Housing,Clothing & Uniforms,30/04/2016,bpc004071,47.8
Lancaster City Council,30UH,Wickes,Health & Housing,Equipment and Tools - General,16/05/2016,bpc004105,13.81
Lancaster City Council,30UH,Wickes,Environmental Services,Equipment and Tools - General,04/04/2016,33024,15.01
Lancaster City Council,30UH,Wickes,Environmental Services,Equipment and Tools - General,07/04/2016,33118,49.98
Lancaster City Council,30UH,Wickes,Health & Housing,Equipment and Tools - General,02/06/2016,spc001661,143.55
Lancaster City Council,30UH,Wilkinsons,Regeneration and Planning,Printing & Stationery,12/04/2016,33138,10.82
Lancaster City Council,30UH,Wilkinsons,Governance,Printing & Stationery,10/05/2016,lpc000376,7.5
Lancaster City Council,30UH,Wilkinsons,Resources,R & M - Buildings,27/06/2016,ppc000524,2.5
Lancaster City Council,30UH,Wilkinsons,Governance,Catering Provisions,24/05/2016,dpc000402,3
Lancaster City Council,30UH,Wilkinsons,Governance,Corporate Safety,24/05/2016,dpc000402,2.5
Lancaster City Council,30UH,Wilkinsons,Resources,Equipment and Tools - General,28/04/2016,ppc000480,5.83
Lancaster City Council,30UH,Wilkinsons,Resources,Equipment and Tools - General,17/05/2016,ppc000496,16.67
Lancaster City Council,30UH,Wilkinsons,Health & Housing,R & M - Environmental Works,15/06/2016,hpc000403,86.67
Lancaster City Council,30UH,Wilkinsons,Regeneration and Planning,Services - General,07/04/2016,npc001158,9.6
Lancaster City Council,30UH,Wilkinsons,Resources,Cleaning Materials,01/04/2016,ppc000467,5
Lancaster City Council,30UH,Wilkinsons,Resources,Cleaning Materials,23/06/2016,ppc000517,4.83
Lancaster City Council,30UH,Wilkinsons,Resources,Equipment and Tools - General,01/04/2016,ppc000464,20.42
Lancaster City Council,30UH,Wilkinsons,Resources,Equipment and Tools - General,14/04/2016,ppc000471,8.33
Lancaster City Council,30UH,Wilkinsons,Resources,Equipment and Tools - General,03/05/2016,ppc000483,25
Lancaster City Council,30UH,Wilkinsons,Resources,Equipment and Tools - General,13/05/2016,ppc000494,6.46
Lancaster City Council,30UH,Wilkinsons,Resources,R & M - Buildings,12/05/2016,ppc000492,20.42
Lancaster City Council,30UH,WP-TVCables Nuimbus,Health & Housing,Equipment and Tools - General,16/05/2016,bpc004104,4.33
Lancaster City Council,30UH,WWW.Ecateringonline.co.uk,Health & Housing,Equipment and Tools - General,30/04/2016,bpc004072,1048
Lancaster City Council,30UH,www.sta.co.uk,Health & Housing,Service Training Budget,25/04/2016,bpc004045,39.17
Lancaster City Council,30UH,Yell.com,Health & Housing,Equipment and Tools - General,20/04/2016,spc001562,137
Lancaster City Council,30UH,York Survey,Environmental Services,Equipment and Tools - General,07/04/2016,33121,-74
Lancaster City Council,30UH,Zumba Fitness,Health & Housing,Service Training Budget,18/05/2016,bpc004122,183.72
Lancaster City Council,30UH,Virgin Trains,Environmental Services,Travel,09/05/2016,33476,17.8
Lancaster City Council,30UH,The Trainline Ltd,Health & Housing,Travel,13/06/2016,spc001700,86.95
Lancaster City Council,30UH,Food Safety Direct Ltd,Health & Housing,Env Services - Tech Equipment,21/06/2016,spc001699,28.5
Lancaster City Council,30UH,Electronic Temperature Instruments Ltd,Health & Housing,Env Services - Tech Equipment,21/06/2016,spc001698,61.25
Lancaster City Council,30UH,HMRC,Governance,Legal Services - Advocacy,06/06/2016,lpc000396,335
Lancaster City Council,30UH,post office,Governance,Mail Services,17/06/2016,lpc000395,11
Lancaster City Council,30UH,HMCTS,Governance,Legal Services - Advocacy,23/06/2016,lpc000391,2700
Lancaster City Council,30UH,budget places ltd,Health & Housing,Travel,13/06/2016,spc001701,151.22
